Workbook

Sheet Market Size
B6: Accumulated number of LPR devices of all manufacturers in the field 5 years after launch worldwide in three different frequency bands: | H6: 200000
B7: Fraction of devices sold for the European market in all bands [%]: | H7: 40
B8: Fraction of devices sold in the band 116-148,5GHz [%]: | H8: 50
B9: Fraction of devices sold in the band 167-182GHz [%]: | H9: 30
B10: Fraction of devices sold in the band 231,5-250GHz [%]: | H10: 20
B12: Accumulated number of devices in the field after 5 years in Europe in the band 116-148,5GHz: | H12: =H6*H7/100*H8/100 -> 40000
B13: Accumulated number of devices in the field after 5 years in Europe in the band 167-182GHz: | H13: =H6*H7/100*H9/100 -> 24000
B14: Accumulated number of devices in the field after 5 years in Europe in the band 231,5-250GHz: | H14: =H6*H7/100*H10/100 -> 16000
B17: Land area of Europe [km²] | H17: 10523000
B19: LPR density in Europe in the band 116-148,5GHz [devices/km²] | H19: =H12/H17 -> 0.003801197377
B20: LPR density in Europe in the band 167-182GHz [devices/km²] | H20: =H13/H17 -> 0.002280718426
B21: LPR density in Europe in the band 231,5-250GHz [devices/km²] | H21: =H14/H17 -> 0.001520478951

Sheet Indoor outdoor attenuation
B2: Elevation | C2: Avg. BEL Traditional | D2: Avg. BEL Efficient | E2: 70/30 BEL omni | F2: BEL High-Gain Comp | G2: Clutter | H2: Transm./Refl. Loss | I2: Inherent Dev. Shielding | J2: Total
B3: deg | C3: dB | D3: dB | F3: dB | G3: dB | J3: dB
B4: 0 | C4: 13.6 | D4: 26.1 | E4: =(-10*LOG10(0.7*10^(-$C4/10)+0.3*10^(-$D4/10))) -> 15.04559449 | F4: 0 | G4: 18.1 | H4: 0 | I4: 0 | J4: =SUM(E4:I4) -> 33.14559449
B5: 1 | C5: 13.7 | D5: 26.2 | E5: =(-10*LOG10(0.7*10^(-$C5/10)+0.3*10^(-$D5/10))) -> 15.14559449 | F5: 0 | G5: 16.8 | H5: 0 | I5: 0 | J5: 31.94559449
B6: 2 | C6: 13.8 | D6: 26.2 | E6: 15.24321452 | F6: 0 | G6: 15.7 | H6: 0 | I6: 0 | J6: 30.94321452
B7: 3 | C7: 13.9 | D7: 26.3 | E7: 15.34321452 | F7: 0 | G7: 14.8 | H7: 0 | I7: 0 | J7: 30.14321452
B8: 4 | C8: 14 | D8: 26.4 | E8: 15.44321452 | F8: 0 | G8: 14 | H8: 0 | I8: 0 | J8: 29.44321452
B9: 5 | C9: 14.1 | D9: 26.5 | E9: 15.54321452 | F9: 0 | G9: 13.2 | H9: 0 | I9: 0 | J9: 28.74321452
B10: 6 | C10: 14.2 | D10: 26.5 | E10: 15.64078046 | F10: 0 | G10: 12.6 | H10: 0 | I10: 0 | J10: 28.24078046
B11: 7 | C11: 14.3 | D11: 26.6 | E11: 15.74078046 | F11: 0 | G11: 12 | H11: 0 | I11: 0 | J11: 27.74078046
B12: 8 | C12: 14.4 | D12: 26.7 | E12: 15.84078046 | F12: 0 | G12: 11.4 | H12: 0 | I12: 0 | J12: 27.24078046
B13: 9 | C13: 14.5 | D13: 26.8 | E13: 15.94078046 | F13: 0 | G13: 10.9 | H13: 0 | I13: 0 | J13: 26.84078046
B14: 10 | C14: 14.6 | D14: 26.8 | E14: 16.03829112 | F14: 0 | G14: 10.4 | H14: 0 | I14: 0 | J14: 26.43829112
B15: 11 | C15: 14.7 | D15: 26.9 | E15: 16.13829112 | F15: 0 | G15: 10 | H15: 0 | I15: 0 | J15: 26.13829112
B16: 12 | C16: 14.8 | D16: 27 | E16: 16.23829112 | F16: 0 | G16: 9.5 | H16: 0 | I16: 0 | J16: 25.73829112
B17: 13 | C17: 14.9 | D17: 27.1 | E17: 16.33829112 | F17: 0 | G17: 9.1 | H17: 0 | I17: 0 | J17: 25.43829112
B18: 14 | C18: 15.1 | D18: 27.2 | E18: 16.53574527 | F18: 0 | G18: 8.7 | H18: 0 | I18: 0 | J18: 25.23574527
B19: 15 | C19: 15.2 | D19: 27.2 | E19: 16.63314167 | F19: 0 | G19: 8.3 | H19: 0 | I19: 0 | J19: 24.93314167
B20: 16 | C20: 15.3 | D20: 27.3 | E20: 16.73314167 | F20: 0 | G20: 8 | H20: 0 | I20: 0 | J20: 24.73314167
B21: 17 | C21: 15.4 | D21: 27.4 | E21: 16.83314167 | F21: 0 | G21: 7.6 | H21: 0 | I21: 0 | J21: 24.43314167
B22: 18 | C22: 15.5 | D22: 27.5 | E22: 16.93314167 | F22: 0 | G22: 7.3 | H22: 0 | I22: 0 | J22: 24.23314167
B23: 19 | C23: 15.6 | D23: 27.6 | E23: 17.03314167 | F23: 0 | G23: 7 | H23: 0 | I23: 0 | J23: 24.03314167
B24: 20 | C24: 15.7 | D24: 27.6 | E24: 17.13047903 | F24: 0 | G24: 6.7 | H24: 0 | I24: 0 | J24: 23.83047903
B25: 21 | C25: 15.8 | D25: 27.7 | E25: 17.23047903 | F25: 0 | G25: 6.4 | H25: 0 | I25: 0 | J25: 23.63047903
B26: 22 | C26: 16 | D26: 27.8 | E26: 17.42775606 | F26: 0 | G26: 6.1 | H26: 0 | I26: 0 | J26: 23.52775606
B27: 23 | C27: 16.1 | D27: 27.9 | E27: 17.52775606 | F27: 0 | G27: 5.9 | H27: 0 | I27: 0 | J27: 23.42775606
B28: 24 | C28: 16.2 | D28: 28 | E28: 17.62775606 | F28: 0 | G28: 5.6 | H28: 0 | I28: 0 | J28: 23.22775606
B29: 25 | C29: 16.3 | D29: 28.1 | E29: 17.72775606 | F29: 0 | G29: 5.4 | H29: 0 | I29: 0 | J29: 23.12775606
B30: 26 | C30: 16.4 | D30: 28.1 | E30: 17.82497143 | F30: 0 | G30: 5.1 | H30: 0 | I30: 0 | J30: 22.92497143
B31: 27 | C31: 16.6 | D31: 28.2 | E31: 18.02212379 | F31: 0 | G31: 4.9 | H31: 0 | I31: 0 | J31: 22.92212379
B32: 28 | C32: 16.7 | D32: 28.3 | E32: 18.12212379 | F32: 0 | G32: 4.7 | H32: 0 | I32: 0 | J32: 22.82212379
B33: 29 | C33: 16.8 | D33: 28.4 | E33: 18.22212379 | F33: 0 | G33: 4.5 | H33: 0 | I33: 0 | J33: 22.72212379
B34: 30 | C34: 16.9 | D34: 28.5 | E34: 18.32212379 | F34: 0 | G34: 4.3 | H34: 0 | I34: 0 | J34: 22.62212379
B35: 31 | C35: 17 | D35: 28.6 | E35: 18.42212379 | F35: 0 | G35: 4.1 | H35: 0 | I35: 0 | J35: 22.52212379
B36: 32 | C36: 17.2 | D36: 28.6 | E36: 18.61623389 | F36: 0 | G36: 3.9 | H36: 0 | I36: 0 | J36: =SUM(E36:I36) -> 22.51623389
B37: 33 | C37: 17.3 | D37: 28.7 | E37: 18.71623389 | F37: 0 | G37: 3.7 | H37: 0 | I37: 0 | J37: 22.41623389
B38: 34 | C38: 17.4 | D38: 28.8 | E38: 18.81623389 | F38: 0 | G38: 3.6 | H38: 0 | I38: 0 | J38: 22.41623389
B39: 35 | C39: 17.5 | D39: 28.9 | E39: 18.91623389 | F39: 0 | G39: 3.4 | H39: 0 | I39: 0 | J39: 22.31623389
B40: 36 | C40: 17.6 | D40: 29 | E40: 19.01623389 | F40: 0 | G40: 3.3 | H40: 0 | I40: 0 | J40: 22.31623389
B41: 37 | C41: 17.8 | D41: 29.1 | E41: 19.21318879 | F41: 0 | G41: 3.1 | H41: 0 | I41: 0 | J41: 22.31318879
B42: 38 | C42: 17.9 | D42: 29.2 | E42: 19.31318879 | F42: 0 | G42: 3 | H42: 0 | I42: 0 | J42: 22.31318879
B43: 39 | C43: 18 | D43: 29.3 | E43: 19.41318879 | F43: 0 | G43: 2.8 | H43: 0 | I43: 0 | J43: 22.21318879
B44: 40 | C44: 18.2 | D44: 29.4 | E44: 19.61007497 | F44: 0 | G44: 2.7 | H44: 0 | I44: 0 | J44: 22.31007497
B45: 41 | C45: 18.3 | D45: 29.4 | E45: 19.70689092 | F45: 0 | G45: 2.6 | H45: 0 | I45: 0 | J45: 22.30689092
B46: 42 | C46: 18.4 | D46: 29.5 | E46: 19.80689092 | F46: 0 | G46: 2.5 | H46: 0 | I46: 0 | J46: 22.30689092
B47: 43 | C47: 18.5 | D47: 29.6 | E47: 19.90689092 | F47: 0 | G47: 2.3 | H47: 0 | I47: 0 | J47: 22.20689092
B48: 44 | C48: 18.7 | D48: 29.7 | E48: 20.10363513 | F48: 0 | G48: 2.2 | H48: 0 | I48: 0 | J48: 22.30363513
B49: 45 | C49: 18.8 | D49: 29.8 | E49: 20.20363513 | F49: 0 | G49: 2.1 | H49: 0 | I49: 0 | J49: 22.30363513
B50: 46 | C50: 18.9 | D50: 29.9 | E50: 20.30363513 | F50: 0 | G50: 2 | H50: 0 | I50: 0 | J50: 22.30363513
B51: 47 | C51: 19.1 | D51: 30 | E51: 20.50030602 | F51: 0 | G51: 1.9 | H51: 0 | I51: 0 | J51: 22.40030602
B52: 48 | C52: 19.2 | D52: 30.1 | E52: 20.60030602 | F52: 0 | G52: 1.8 | H52: 0 | I52: 0 | J52: 22.40030602
B53: 49 | C53: 19.3 | D53: 30.2 | E53: 20.70030602 | F53: 0 | G53: 1.7 | H53: 0 | I53: 0 | J53: 22.40030602
B54: 50 | C54: 19.5 | D54: 30.3 | E54: 20.89690201 | F54: 0 | G54: 1.6 | H54: 0 | I54: 0 | J54: 22.49690201
B55: 51 | C55: 19.6 | D55: 30.4 | E55: 20.99690201 | F55: 0 | G55: 1.6 | H55: 0 | I55: 0 | J55: 22.59690201
B56: 52 | C56: 19.7 | D56: 30.5 | E56: 21.09690201 | F56: 0 | G56: 1.5 | H56: 0 | I56: 0 | J56: 22.59690201
B57: 53 | C57: 19.9 | D57: 30.5 | E57: 21.28986273 | F57: 0 | G57: 1.4 | H57: 0 | I57: 0 | J57: 22.68986273
B58: 54 | C58: 20 | D58: 30.6 | E58: 21.38986273 | F58: 0 | G58: 1.3 | H58: 0 | I58: 0 | J58: 22.68986273
B59: 55 | C59: 20.1 | D59: 30.7 | E59: 21.48986273 | F59: 0 | G59: 1.3 | H59: 0 | I59: 0 | J59: 22.78986273
B60: 56 | C60: 20.3 | D60: 30.8 | E60: 21.68622413 | F60: 0 | G60: 1.2 | H60: 0 | I60: 0 | J60: 22.88622413
B61: 57 | C61: 20.4 | D61: 30.9 | E61: 21.78622413 | F61: 0 | G61: 1.1 | H61: 0 | I61: 0 | J61: 22.88622413
B62: 58 | C62: 20.5 | D62: 31 | E62: 21.88622413 | F62: 0 | G62: 1.1 | H62: 0 | I62: 0 | J62: 22.98622413
B63: 59 | C63: 20.7 | D63: 31.1 | E63: 22.08250392 | F63: 0 | G63: 1 | H63: 0 | I63: 0 | J63: 23.08250392
B64: 60 | C64: 20.8 | D64: 31.2 | E64: 22.18250392 | F64: 0 | G64: 0.9 | H64: 0 | I64: 0 | J64: 23.08250392
B65: 61 | C65: 21 | D65: 31.3 | E65: 22.37870035 | F65: 0 | G65: 0.9 | H65: 0 | I65: 0 | J65: 23.27870035
B66: 62 | C66: 21.1 | D66: 31.4 | E66: 22.47870035 | F66: 0 | G66: 0.8 | H66: 0 | I66: 0 | J66: 23.27870035
B67: 63 | C67: 21.2 | D67: 31.5 | E67: 22.57870035 | F67: 0 | G67: 0.8 | H67: 0 | I67: 0 | J67: 23.37870035
B68: 64 | C68: 21.4 | D68: 31.6 | E68: 22.77481163 | F68: 0 | G68: 0.7 | H68: 0 | I68: 0 | J68: =SUM(E68:I68) -> 23.47481163
B69: 65 | C69: 21.5 | D69: 31.7 | E69: =(-10*LOG10(0.7*10^(-$C69/10)+0.3*10^(-$D69/10))) -> 22.87481163 | F69: 0 | G69: 0.7 | H69: 0 | I69: 0 | J69: =SUM(E69:I69) -> 23.57481163
B70: 66 | C70: 21.7 | D70: 31.8 | E70: 23.07083594 | F70: 0 | G70: 0.6 | H70: 0 | I70: 0 | J70: 23.67083594
B71: 67 | C71: 21.8 | D71: 31.9 | E71: 23.17083594 | F71: 0 | G71: 0.6 | H71: 0 | I71: 0 | J71: 23.77083594
B72: 68 | C72: 22 | D72: 32 | E72: 23.3667714 | F72: 0 | G72: 0.5 | H72: 0 | I72: 0 | J72: 23.8667714
B73: 69 | C73: 22.1 | D73: 32.1 | E73: 23.4667714 | F73: 0 | G73: 0.5 | H73: 0 | I73: 0 | J73: 23.9667714
B74: 70 | C74: 22.2 | D74: 32.2 | E74: 23.5667714 | F74: 0 | G74: 0.5 | H74: 0 | I74: 0 | J74: 24.0667714
B75: 71 | C75: 22.4 | D75: 32.3 | E75: 23.76261612 | F75: 0 | G75: 0.4 | H75: 0 | I75: 0 | J75: 24.16261612
B76: 72 | C76: 22.5 | D76: 32.4 | E76: 23.86261612 | F76: 0 | G76: 0.4 | H76: 0 | I76: 0 | J76: 24.26261612
B77: 73 | C77: 22.7 | D77: 32.5 | E77: 24.05836816 | F77: 0 | G77: 0.3 | H77: 0 | I77: 0 | J77: 24.35836816
B78: 74 | C78: 22.8 | D78: 32.6 | E78: 24.15836816 | F78: 0 | G78: 0.3 | H78: 0 | I78: 0 | J78: 24.45836816
B79: 75 | C79: 23 | D79: 32.7 | E79: 24.35402556 | F79: 0 | G79: 0.3 | H79: 0 | I79: 0 | J79: 24.65402556
B80: 76 | C80: 23.1 | D80: 32.8 | E80: 24.45402556 | F80: 0 | G80: 0.2 | H80: 0 | I80: 0 | J80: 24.65402556
B81: 77 | C81: 23.3 | D81: 32.9 | E81: 24.64958629 | F81: 0 | G81: 0.2 | H81: 0 | I81: 0 | J81: 24.84958629
B82: 78 | C82: 23.4 | D82: 33 | E82: 24.74958629 | F82: 0 | G82: 0.2 | H82: 0 | I82: 0 | J82: 24.94958629
B83: 79 | C83: 23.6 | D83: 33.1 | E83: 24.94504831 | F83: 0 | G83: 0.2 | H83: 0 | I83: 0 | J83: 25.14504831
B84: 80 | C84: 23.7 | D84: 33.2 | E84: 25.04504831 | F84: 0 | G84: 0.1 | H84: 0 | I84: 0 | J84: 25.14504831
B85: 81 | C85: 23.9 | D85: 33.3 | E85: 25.24040953 | F85: 0 | G85: 0.1 | H85: 0 | I85: 0 | J85: 25.34040953
B86: 82 | C86: 24 | D86: 33.4 | E86: 25.34040953 | F86: 0 | G86: 0.1 | H86: 0 | I86: 0 | J86: 25.44040953
B87: 83 | C87: 24.2 | D87: 33.5 | E87: 25.53566782 | F87: 0 | G87: 0.1 | H87: 0 | I87: 0 | J87: 25.63566782
B88: 84 | C88: 24.3 | D88: 33.6 | E88: 25.63566782 | F88: 0 | G88: 0 | H88: 0 | I88: 0 | J88: 25.63566782
B89: 85 | C89: 24.5 | D89: 33.7 | E89: 25.83082102 | F89: 0 | G89: 0 | H89: 0 | I89: 0 | J89: 25.83082102
B90: 86 | C90: 24.6 | D90: 33.8 | E90: 25.93082102 | F90: 0 | G90: 0 | H90: 0 | I90: 0 | J90: 25.93082102
B91: 87 | C91: 24.8 | D91: 33.9 | E91: 26.12586691 | F91: 0 | G91: 0 | H91: 0 | I91: 0 | J91: 26.12586691
B92: 88 | C92: 24.9 | D92: 34 | E92: 26.22586691 | F92: 0 | G92: 0 | H92: 0 | I92: 0 | J92: 26.22586691
B93: 89 | C93: 25.1 | D93: 34.1 | E93: 26.42080326 | F93: 0 | G93: 0 | H93: 0 | I93: 0 | J93: 26.42080326
B94: 90 | C94: 25.3 | D94: 34.2 | E94: 26.61562776 | F94: 0 | G94: 0 | H94: 0 | I94: 0 | J94: 26.61562776

Sheet EESS 116-148,5GHz
B1: Compatibility analysis between LPR in the frequency band 116-148,5 GHz and EESS
B3: Single-entry study | D3: Band of EESS: 114,25-122,25 GHz | F3: Band of EESS: 148,5-151,5 GHz
B4: Victim EESS system | D4: MWI | E4: Planned EUMETSAT radiometer (ECC Report 190) | F4: Sensor N1 (nadir) | G4: Sensor N1 (outer)
B5: Sensor type | D5: Conical Scan | E5: Conical scan | F5: Nadir scan | G5: Nadir scan
B6: EESS: | C6: Units
B7: Assumed centre frequency of EESS | C7: GHz | D7: 119.125 | E7: 119.125 | F7: 150 | G7: 150
B8: Wavelength of EESS | C8: m | D8: =2.99792458/D7/10 -> 0.002516620844 | E8: =2.99792458/E7/10 -> 0.002516620844 | F8: =2.99792458/F7/10 -> 0.001998616387 | G8: =2.99792458/G7/10 -> 0.001998616387
B9: Reference bandwidth | C9: MHz | D9: 200 | E9: 200 | F9: 500 | G9: 500
B10: Orbit altitude | C10: km² | D10: 830 | E10: 800 | F10: 705 | G10: 705
B11: Angle of incidence at Earth's surface (from zenith) | C11: deg | D11: 53.3 | E11: 53 | F11: 0 | G11: 56.9
B12: Elevation angle at ground | C12: deg | D12: =90-D11 -> 36.7 | E12: =90-E11 -> 37 | F12: =90-F11 -> 90 | G12: =90-G11 -> 33.1
B13: Off-nadir angle | C13: deg | D13: =(ASIN(SIN(D11*PI()/180)/(1+D10/6371)))*180/PI()+0.00000001 -> 45.18299423 | E13: =(ASIN(SIN(E11*PI()/180)/(1+E10/6371)))*180/PI()+0.00000001 -> 45.19744971 | F13: =(ASIN(SIN(F11*PI()/180)/(1+F10/6371)))*180/PI()+0.00000001 -> 1e-08 | G13: =(ASIN(SIN(G11*PI()/180)/(1+G10/6371)))*180/PI()+0.00000001 -> 48.96028579
B14: Slant path distance | C14: km | D14: =6371*SIN((ASIN(((6371+D10)/6371)*SIN(D13*PI()/180))*180/PI()-D13)*PI()/180)/SIN(D13*PI()/180) -> 1268.117481 | E14: =6371*SIN((ASIN(((6371+E10)/6371)*SIN(E13*PI()/180))*180/PI()-E13)*PI()/180)/SIN(E13*PI()/180) -> 1218.99489 | F14: =6371*SIN((ASIN(((6371+F10)/6371)*SIN(F13*PI()/180))*180/PI()-F13)*PI()/180)/SIN(F13*PI()/180) -> 705 | G14: =6371*SIN((ASIN(((6371+G10)/6371)*SIN(G13*PI()/180))*180/PI()-G13)*PI()/180)/SIN(G13*PI()/180) -> 1166.758594
B15: EESS antenna gain | C15: dBi | D15: 55.5 | E15: 55 | F15: 45 | G15: 45
B16: Size of EESS FOV on Earth's surface | C16: km² | D16: 82 | E16: 82 | F16: 154 | G16: 759
B17: EESS interference criterion in the reference bandwidth (ITU-R RS.2017-0) | C17: dBW | D17: -166 | E17: -166 | F17: -159 | G17: -159
B18: Apportionment factor | C18: dB | D18: 12 | E18: 12 | F18: 12 | G18: 12
B20: LPR system:
B21: Conducted Tx power of LPR | C21: dBm | D21: -8 | E21: -8 | F21: -8 | G21: -8
B22: Out-of-band unwanted emissions attenuation (if EESS victim is located in an adjacent band) | C22: dB | D22: 0 | E22: 0 | F22: 20 | G22: 20
B23: Tx e.i.r.p. of LPR | C23: dBm | D23: =D21-D22+D28 -> 24 | E23: =E21-E22+E28 -> 24 | F23: =F21-F22+F28 -> 4 | G23: =G21-G22+G28 -> 4
B24: Bandwidth of LPR Tx signal | C24: GHz | D24: 1.6 | E24: 1.6 | F24: 1.6 | G24: 1.6
B25: Tx e.i.r.p. spectral density of LPR | C25: dBm/MHz | D25: =D23-10*LOG(D24*1000) -> -8.041199827 | E25: =E23-10*LOG(E24*1000) -> -8.041199827 | F25: =F23-10*LOG(F24*1000) -> -28.04119983 | G25: =G23-10*LOG(G24*1000) -> -28.04119983
B26: Tx e.i.r.p. spectral density of LPR | C26: dBW/MHz | D26: =D25-30 -> -38.04119983 | E26: =E25-30 -> -38.04119983 | F26: =F25-30 -> -58.04119983 | G26: =G25-30 -> -58.04119983
B27: Mitigation technique (e.g. activity factor, adaptive power control) | C27: dB | D27: 0 | E27: 0 | F27: 0 | G27: 0
B28: Gain of the LPR antenna in direction of main radiation | C28: dBi | D28: 32 | E28: 32 | F28: 32 | G28: 32
B29: Tx power spectral density of LPR without mitigation | C29: dBW/MHz | D29: =D26-D28 -> -70.04119983 | E29: =E26-E28 -> -70.04119983 | F29: =F26-F28 -> -90.04119983 | G29: =G26-G28 -> -90.04119983
B30: Tx power spectral density of LPR with mitigation | C30: dBW/MHz | D30: =D26+D27-D28 -> -70.04119983 | E30: =E26+E27-E28 -> -70.04119983 | F30: =F26+F27-F28 -> -90.04119983 | G30: =G26+G27-G28 -> -90.04119983
B32: Direct interference component:
B33: Max. gain of the LPR antenna backlobe | C33: dBi | D33: 0 | E33: 0 | F33: 0 | G33: 0
B34: Direct e.i.r.p. spectral density component sent to the EESS | C34: dBW/MHz | D34: =D30+D33 -> -70.04119983 | E34: =E30+E33 -> -70.04119983 | F34: =F30+F33 -> -90.04119983 | G34: =G30+G33 -> -90.04119983
B36: Scattered/reflected interference component:
B37: Additional losses for the scattered component | C37: dB | D37: -10 | E37: -10 | F37: -10 | G37: -10
B38: Dielectric reflection attenuation (e.g. water with εr=8 for f>100GHz) | C38: dB | D38: -6.42 | E38: -6.42 | F38: -6.42 | G38: -6.42
B39: Scattered/reflected e.i.r.p. spectral density component sent to the EESS | C39: dBW/MHz | D39: =D26+D27+D37+D38 -> -54.46119983 | E39: =E26+E27+E37+E38 -> -54.46119983 | F39: =F26+F27+F37+F38 -> -74.46119983 | G39: =G26+G27+G37+G38 -> -74.46119983
B41: Free space loss between LPR and EESS | C41: dB | D41: =20*LOG10(4*PI()*D14*1000/D8) -> 196.0310313 | E41: =20*LOG10(4*PI()*E14*1000/E8) -> 195.6878792 | F41: =20*LOG10(4*PI()*F14*1000/F8) -> 192.9333907 | G41: =20*LOG10(4*PI()*G14*1000/G8) -> 197.3092286
B42: Direct e.i.r.p. spectral density component at the EESS antenna | C42: dBW/MHz | D42: =D34-D41 -> -266.0722311 | E42: =E34-E41 -> -265.729079 | F42: =F34-F41 -> -282.9745906 | G42: =G34-G41 -> -287.3504284
B43: Scattered/reflected e.i.r.p. spectral density component at the EESS antenna | C43: dBW/MHz | D43: =D39-D41 -> -250.4922311 | E43: =E39-E41 -> -250.149079 | F43: =F39-F41 -> -267.3945906 | G43: =G39-G41 -> -271.7704284
B44: Total e.i.r.p. spectral density at the EESS antenna (without consideration of atmospheric loss) | C44: dBW/MHz | D44: =10*LOG10(10^(D42/10)+10^(D43/10)) -> -250.3736968 | E44: =10*LOG10(10^(E42/10)+10^(E43/10)) -> -250.0305447 | F44: =10*LOG10(10^(F42/10)+10^(F43/10)) -> -267.2760562 | G44: =10*LOG10(10^(G42/10)+10^(G43/10)) -> -271.6518941
B45: Atmospheric loss (according to contribution SE24(20)063_rev1) | C45: dB | D45: 3.2 | E45: 3.2 | F45: 2 | G45: 3.8
B46: Polarisation mismatch loss | C46: dB | D46: 3 | E46: 3 | F46: 3 | G46: 3
B47: Indoor-outdoor attenuation (according to clause 2.3 in the Report) | C47: dB | D47: 0 | E47: 0 | F47: 0 | G47: 0
B48: Power spectral density at the EESS receiver in a 1 MHz bandwidth | C48: dBW/MHz | D48: =D44+D15-D45-D46-D47 -> -201.0736968 | E48: =E44+E15-E45-E46-E47 -> -201.2305447 | F48: =F44+F15-F45-F46-F47 -> -227.2760562 | G48: =G44+G15-G45-G46-G47 -> -233.4518941
B49: Corresponding power at the EESS receiver in the reference bandwidth for a single LPR | C49: dBW | D49: =D48+10*LOG10(D9) -> -178.0633968 | E49: =E48+10*LOG10(E9) -> -178.2202447 | F49: =F48+10*LOG10(F9) -> -200.2863562 | G49: =G48+10*LOG10(G9) -> -206.462194
B50: Number of interferers in EESS FOV on Earth's surface | D50: 1 | E50: 1 | F50: 1 | G50: 1
B51: Corresponding received power at the EESS in the reference bandwidth within the EESS's FOV | C51: dBW | D51: =D49+10*LOG10(D50) -> -178.0633968 | E51: =E49+10*LOG10(E50) -> -178.2202447 | F51: =F49+10*LOG10(F50) -> -200.2863562 | G51: =G49+10*LOG10(G50) -> -206.462194
B52: Margin with reference to ITU-R RS.2017-0 | C52: dB | D52: =D17-D18-D51 -> 0.06339683418 | E52: =E17-E18-E51 -> 0.2202447473 | F52: =F17-F18-F51 -> 29.28635621 | G52: =G17-G18-G51 -> 35.46219403
B59: Aggregate interference study | D59: Band of EESS: 114,25-122,25 GHz | F59: Band of EESS: 148,5-151,5 GHz
B60: Victim EESS system | D60: MWI | E60: Planned EUMETSAT radiometer (ECC Report 190) | F60: Sensor N1 (nadir) | G60: Sensor N1 (outer)
B61: Sensor type | D61: Conical Scan | E61: Conical scan | F61: Nadir scan | G61: Nadir scan
B62: EESS: | C62: Units
B63: Assumed centre frequency of EESS | C63: GHz | D63: 119.125 | E63: 119.125 | F63: 150 | G63: 150
B64: Wavelength of EESS | C64: m | D64: =2.99792458/D63/10 -> 0.002516620844 | E64: =2.99792458/E63/10 -> 0.002516620844 | F64: =2.99792458/F63/10 -> 0.001998616387 | G64: =2.99792458/G63/10 -> 0.001998616387
B65: Reference bandwidth | C65: MHz | D65: 200 | E65: 200 | F65: 500 | G65: 500
B66: Orbit altitude | C66: km² | D66: 830 | E66: 800 | F66: 705 | G66: 705
B67: Angle of incidence at Earth's surface (from zenith) | C67: deg | D67: 53.3 | E67: 53 | F67: 0 | G67: 56.9
B68: Elevation angle at ground | C68: deg | D68: =90-D67 -> 36.7 | E68: =90-E67 -> 37 | F68: =90-F67 -> 90 | G68: =90-G67 -> 33.1
B69: Off-nadir angle | C69: deg | D69: =(ASIN(SIN(D67*PI()/180)/(1+D66/6371)))*180/PI()+0.00000001 -> 45.18299423 | E69: =(ASIN(SIN(E67*PI()/180)/(1+E66/6371)))*180/PI()+0.00000001 -> 45.19744971 | F69: =(ASIN(SIN(F67*PI()/180)/(1+F66/6371)))*180/PI()+0.00000001 -> 1e-08 | G69: =(ASIN(SIN(G67*PI()/180)/(1+G66/6371)))*180/PI()+0.00000001 -> 48.96028579
B70: Slant path distance | C70: km | D70: =6371*SIN((ASIN(((6371+D66)/6371)*SIN(D69*PI()/180))*180/PI()-D69)*PI()/180)/SIN(D69*PI()/180) -> 1268.117481 | E70: =6371*SIN((ASIN(((6371+E66)/6371)*SIN(E69*PI()/180))*180/PI()-E69)*PI()/180)/SIN(E69*PI()/180) -> 1218.99489 | F70: =6371*SIN((ASIN(((6371+F66)/6371)*SIN(F69*PI()/180))*180/PI()-F69)*PI()/180)/SIN(F69*PI()/180) -> 705 | G70: =6371*SIN((ASIN(((6371+G66)/6371)*SIN(G69*PI()/180))*180/PI()-G69)*PI()/180)/SIN(G69*PI()/180) -> 1166.758594
B71: EESS antenna gain | C71: dBi | D71: 55.5 | E71: 55 | F71: 45 | G71: 45
B72: Size of EESS FOV on Earth's surface | C72: km² | D72: 82 | E72: 82 | F72: 154 | G72: 759
B73: EESS interference criterion in the reference bandwidth (ITU-R RS.2017-0) | C73: dBW | D73: -166 | E73: -166 | F73: -159 | G73: -159
B74: Apportionment factor | C74: dB | D74: 12 | E74: 12 | F74: 12 | G74: 12
B76: LPR system:
B77: Conducted Tx power of LPR | C77: dBm | D77: -8 | E77: -8 | F77: -8 | G77: -8
B78: Out-of-band unwanted emissions attenuation (if EESS victim is located in an adjacent band) | C78: dB | D78: 0 | E78: 0 | F78: 20 | G78: 20
B79: Tx e.i.r.p. of LPR | C79: dBm | D79: =D77-D78+D84 -> 24 | E79: =E77-E78+E84 -> 24 | F79: =F77-F78+F84 -> 4 | G79: =G77-G78+G84 -> 4
B80: Bandwidth of LPR Tx signal | C80: GHz | D80: 1.6 | E80: 1.6 | F80: 1.6 | G80: 1.6
B81: Tx e.i.r.p. spectral density of LPR | C81: dBm/MHz | D81: =D79-10*LOG(D80*1000) -> -8.041199827 | E81: =E79-10*LOG(E80*1000) -> -8.041199827 | F81: =F79-10*LOG(F80*1000) -> -28.04119983 | G81: =G79-10*LOG(G80*1000) -> -28.04119983
B82: Tx e.i.r.p. spectral density of LPR | C82: dBW/MHz | D82: =D81-30 -> -38.04119983 | E82: =E81-30 -> -38.04119983 | F82: =F81-30 -> -58.04119983 | G82: =G81-30 -> -58.04119983
B83: Mitigation technique (e.g. activity factor, adaptive power control) | C83: dB | D83: 0 | E83: 0 | F83: 0 | G83: 0
B84: Gain of the LPR antenna in direction of main radiation | C84: dBi | D84: 32 | E84: 32 | F84: 32 | G84: 32
B85: Tx power spectral density of LPR without mitigation | C85: dBW/MHz | D85: =D82-D84 -> -70.04119983 | E85: =E82-E84 -> -70.04119983 | F85: =F82-F84 -> -90.04119983 | G85: =G82-G84 -> -90.04119983
B86: Tx power spectral density of LPR with mitigation | C86: dBW/MHz | D86: =D82+D83-D84 -> -70.04119983 | E86: =E82+E83-E84 -> -70.04119983 | F86: =F82+F83-F84 -> -90.04119983 | G86: =G82+G83-G84 -> -90.04119983
B88: Direct interference component:
B89: Max. gain of the LPR antenna backlobe | C89: dBi | D89: 0 | E89: 0 | F89: 0 | G89: 0
B90: Direct e.i.r.p. spectral density component sent to the EESS | C90: dBW/MHz | D90: =D86+D89 -> -70.04119983 | E90: =E86+E89 -> -70.04119983 | F90: =F86+F89 -> -90.04119983 | G90: =G86+G89 -> -90.04119983
B92: Scattered/reflected interference component:
B93: Additional losses for the scattered component | C93: dB | D93: -10 | E93: -10 | F93: -10 | G93: -10
B94: Average dielectric reflection attenuation at sand slope | C94: dB | D94: -20 | E94: -20 | F94: -20 | G94: -20
B95: Scattered/reflected e.i.r.p. spectral density component sent to the EESS | C95: dBW/MHz | D95: =D82+D83+D93+D94 -> -68.04119983 | E95: =E82+E83+E93+E94 -> -68.04119983 | F95: =F82+F83+F93+F94 -> -88.04119983 | G95: =G82+G83+G93+G94 -> -88.04119983
B97: Free space loss between LPR and EESS | C97: dB | D97: =20*LOG10(4*PI()*D70*1000/D64) -> 196.0310313 | E97: =20*LOG10(4*PI()*E70*1000/E64) -> 195.6878792 | F97: =20*LOG10(4*PI()*F70*1000/F64) -> 192.9333907 | G97: =20*LOG10(4*PI()*G70*1000/G64) -> 197.3092286
B98: Direct e.i.r.p. spectral density component at the EESS antenna | C98: dBW/MHz | D98: =D90-D97 -> -266.0722311 | E98: =E90-E97 -> -265.729079 | F98: =F90-F97 -> -282.9745906 | G98: =G90-G97 -> -287.3504284
B99: Scattered/reflected e.i.r.p. spectral density component at the EESS antenna | C99: dBW/MHz | D99: =D95-D97 -> -264.0722311 | E99: =E95-E97 -> -263.729079 | F99: =F95-F97 -> -280.9745906 | G99: =G95-G97 -> -285.3504284
B100: Total e.i.r.p. spectral density at the EESS antenna (without consideration of atmospheric loss) | C100: dBW/MHz | D100: =10*LOG10(10^(D98/10)+10^(D99/10)) -> -261.9478051 | E100: =10*LOG10(10^(E98/10)+10^(E99/10)) -> -261.604653 | F100: =10*LOG10(10^(F98/10)+10^(F99/10)) -> -278.8501645 | G100: =10*LOG10(10^(G98/10)+10^(G99/10)) -> -283.2260024
B101: Atmospheric loss (according to contribution SE24(20)063_rev1) | C101: dB | D101: 3.2 | E101: 3.2 | F101: 2 | G101: 3.8
B102: Polarisation mismatch loss | C102: dB | D102: 3 | E102: 3 | F102: 3 | G102: 3
B103: Indoor-outdoor attenuation (according to clause 2.3 in the Report) | C103: dB | D103: =VLOOKUP(D68,'Indoor outdoor attenuation'!data_1,9) -> 22.31623389 | E103: =VLOOKUP(E68,'Indoor outdoor attenuation'!data_1,9) -> 22.31318879 | F103: =VLOOKUP(F68,'Indoor outdoor attenuation'!data_1,9) -> 26.61562776 | G103: =VLOOKUP(G68,'Indoor outdoor attenuation'!data_1,9) -> 22.41623389
B104: Power spectral density at the EESS receiver in a 1 MHz bandwidth | C104: dBW/MHz | D104: =D100+D71-D101-D102 -> -212.6478051 | E104: =E100+E71-E101-E102 -> -212.804653 | F104: =F100+F71-F101-F102 -> -238.8501645 | G104: =G100+G71-G101-G102 -> -245.0260024
B105: Corresponding power at the EESS receiver in the reference bandwidth for a single LPR | C105: dBW | D105: =D104+10*LOG10(D65) -> -189.6375051 | E105: =E104+10*LOG10(E65) -> -189.794353 | F105: =F104+10*LOG10(F65) -> -211.8604645 | G105: =G104+10*LOG10(G65) -> -218.0363023
B106: Uniform LPR device density (with uniform distribution over Europe) | C106: 1/km² | D106: ='Market Size'!H19 -> 0.003801197377 | E106: ='Market Size'!H19 -> 0.003801197377 | F106: ='Market Size'!H19 -> 0.003801197377 | G106: ='Market Size'!H19 -> 0.003801197377
B107: Aggregate LPR device density (uniform distribution weighted with factor 75; acc. to annex 9 in the Report) | C107: 1/km² | D107: =D106*75 -> 0.2850898033 | E107: =E106*75 -> 0.2850898033 | F107: =F106*75 -> 0.2850898033 | G107: =G106*75 -> 0.2850898033
B108: Number of aggregate LPR devices in the IFOV and active in the reference BW of the satellite | D108: =ROUNDUP(D107*D72,0) -> 24 | E108: =ROUNDUP(E107*E72,0) -> 24 | F108: =ROUNDUP(F107*F72,0) -> 44 | G108: =ROUNDUP(G107*G72,0) -> 217
B109: Percentage of LPRs operated indoors | C109: % | D109: 90 | E109: 90 | F109: 90 | G109: 90
B110: Resulting total number of outdoor interferers in EESS FOV on Earth's surface | D110: =ROUNDUP((D109/100)*D108*10^-(D103/10)+((1-D109/100)*D108),0) -> 3 | E110: =ROUNDUP((E109/100)*E108*10^-(E103/10)+((1-E109/100)*E108),0) -> 3 | F110: =ROUNDUP((F109/100)*F108*10^-(F103/10)+((1-F109/100)*F108),0) -> 5 | G110: =ROUNDUP((G109/100)*G108*10^-(G103/10)+((1-G109/100)*G108),0) -> 23
B111: Corresponding received power at the EESS in the reference bandwidth within the EESS's FOV | C111: dBW | D111: =D105+10*LOG10(D110) -> -184.8662926 | E111: =E105+10*LOG10(E110) -> -185.0231405 | F111: =F105+10*LOG10(F110) -> -204.8707645 | G111: =G105+10*LOG10(G110) -> -204.419024
B112: Margin with reference to ITU-R RS.2017-0 | C112: dB | D112: =D73-D74-D111 -> 6.86629258 | E112: =E73-E74-E111 -> 7.023140493 | F112: =F73-F74-F111 -> 33.87076445 | G112: =G73-G74-G111 -> 33.41902397

Sheet EESS 167-182GHz
B1: Compatibility analysis between LPR in the frequency band 167-182 GHz and EESS
B3: Single-entry study | D3: Band of EESS: 164-167 GHz | G3: Band of EESS: 174,8-191,8 GHz
B4: Victim EESS system | D4: Sensor P1 | E4: Sensor P2 (nadir) | F4: Sensor P2 (outer) | G4: MHS (nadir) | H4: MHS (outer) | I4: MWI | J4: MWS (nadir) | K4: MWS (outer) | L4: ICI | M4: AWS (nadir) | N4: AWS (outer)
B5: Sensor type | D5: Conical scan | E5: Nadir scan | F5: Nadir scan | G5: Nadir scan | H5: Nadir scan | I5: Conical scan | J5: Nadir scan | K5: Nadir scan | L5: Conical scan | M5: Nadir scan | N5: Nadir scan
B6: EESS: | C6: Units
B7: Assumed centre frequency of EESS | C7: GHz | D7: 165.5 | E7: 165.5 | F7: 165.5 | G7: 178.4 | H7: 178.4 | I7: 178.4 | J7: 178.4 | K7: 178.4 | L7: 178.4 | M7: 178.4 | N7: 178.4
B8: Wavelength of EESS | C8: m | D8: =2.99792458/D7/10 -> 0.001811434792 | E8: 0.001811434792 | F8: 0.001811434792 | G8: 0.001680450998 | H8: 0.001680450998 | I8: 0.001680450998 | J8: 0.001680450998 | K8: 0.001680450998 | L8: 0.001680450998 | M8: 0.001680450998 | N8: 0.001680450998
B9: Reference bandwidth | C9: MHz | D9: 200 | E9: 200 | F9: 200 | G9: 200 | H9: 200 | I9: 200 | J9: 200 | K9: 200 | L9: 200 | M9: 200 | N9: 200
B10: Orbit altitude | C10: km² | D10: 828 | E10: 824 | F10: 824 | G10: 822 | H10: 822 | I10: 830 | J10: 830 | K10: 830 | L10: 830 | M10: 600 | N10: 600
B11: Angle of incidence at Earth's surface (from zenith) | C11: deg | D11: 55.5 | E11: 0 | F11: 64 | G11: 0 | H11: 59 | I11: 53.3 | J11: 0 | K11: 58.5 | L11: 53.3 | M11: 0 | N11: 55.7
B12: Elevation angle at ground | C12: deg | D12: =90-D11 -> 34.5 | E12: 90 | F12: 26 | G12: 90 | H12: 31 | I12: 36.7 | J12: 90 | K12: 31.5 | L12: 36.7 | M12: 90 | N12: 34.3
B13: Off-nadir angle | C13: deg | D13: =(ASIN(SIN(D11*PI()/180)/(1+D10/6371)))*180/PI()+0.00000001 -> 46.83096782 | E13: 1e-08 | F13: 52.73661527 | G13: 1e-08 | H13: 49.39479043 | I13: 45.18299423 | J13: 1e-08 | K13: 48.96977181 | L13: 45.18299423 | M13: 1e-08 | N13: 49.02495908
B14: Slant path distance | C14: km | D14: =6371*SIN((ASIN(((6371+D10)/6371)*SIN(D13*PI()/180))*180/PI()-D13)*PI()/180)/SIN(D13*PI()/180) -> 1316.643352 | E14: 824 | F14: 1563.565476 | G14: 822 | H14: 1400.207928 | I14: 1268.117481 | J14: 830 | K14: 1398.309283 | L14: 1268.117481 | M14: 600 | N14: 980.8707785
B15: EESS antenna gain | C15: dBi | D15: 54 | E15: 43.9 | F15: 43.9 | G15: 44.8 | H15: 44.8 | I15: 56.9 | J15: 43 | K15: 43 | L15: 52 | M15: 50 | N15: 50
B16: Size of EESS FOV on Earth's surface | C16: km² | D16: 113 | E16: 254 | F16: 2083 | G16: 201 | H16: 1103 | I16: 61 | J16: 315 | K16: 1762 | L16: 164 | M16: 28 | N16: 141
B17: EESS interference criterion in the reference bandwidth (ITU-R RS.2017-0) | C17: dBW | D17: -163 | E17: -163 | F17: -163 | G17: -163 | H17: -163 | I17: -163 | J17: -163 | K17: -163 | L17: -163 | M17: -163 | N17: -163
B18: Apportionment factor | C18: dB | D18: 12 | E18: 12 | F18: 12 | G18: 12 | H18: 12 | I18: 12 | J18: 12 | K18: 12 | L18: 12 | M18: 12 | N18: 12
B20: LPR system:
B21: Conducted Tx power of LPR | C21: dBm | D21: -8 | E21: -8 | F21: -8 | G21: -8 | H21: -8 | I21: -8 | J21: -8 | K21: -8 | L21: -8 | M21: -8 | N21: -8
B22: Out-of-band unwanted emissions attenuation (if EESS victim is located in an adjacent band) | C22: dB | D22: 20 | E22: 20 | F22: 20 | G22: 0 | H22: 0 | I22: 0 | J22: 0 | K22: 0 | L22: 0 | M22: 0 | N22: 0
B23: Tx e.i.r.p. of LPR | C23: dBm | D23: =D21-D22+D28 -> 4 | E23: 4 | F23: 4 | G23: 24 | H23: 24 | I23: 24 | J23: 24 | K23: 24 | L23: 24 | M23: 24 | N23: 24
B24: Bandwidth of LPR Tx signal | C24: GHz | D24: 1 | E24: 1 | F24: 1 | G24: 1 | H24: 1 | I24: 1 | J24: 1 | K24: 1 | L24: 1 | M24: 1 | N24: 1
B25: Tx e.i.r.p. spectral density of LPR | C25: dBm/MHz | D25: =D23-10*LOG(D24*1000) -> -26 | E25: -26 | F25: -26 | G25: -6 | H25: -6 | I25: -6 | J25: -6 | K25: -6 | L25: -6 | M25: -6 | N25: -6
B26: Tx e.i.r.p. spectral density of LPR | C26: dBW/MHz | D26: =D25-30 -> -56 | E26: -56 | F26: -56 | G26: -36 | H26: -36 | I26: -36 | J26: -36 | K26: -36 | L26: -36 | M26: -36 | N26: -36
B27: Mitigation technique (e.g. activity factor, adaptive power control) | C27: dB | D27: 0 | E27: 0 | F27: 0 | G27: 0 | H27: 0 | I27: 0 | J27: 0 | K27: 0 | L27: 0 | M27: 0 | N27: 0
B28: Gain of the LPR antenna in direction of main radiation | C28: dBi | D28: 32 | E28: 32 | F28: 32 | G28: 32 | H28: 32 | I28: 32 | J28: 32 | K28: 32 | L28: 32 | M28: 32 | N28: 32
B29: Tx power spectral density of LPR without mitigation | C29: dBW/MHz | D29: =D26-D28 -> -88 | E29: -88 | F29: -88 | G29: -68 | H29: -68 | I29: -68 | J29: -68 | K29: -68 | L29: -68 | M29: -68 | N29: -68
B30: Tx power spectral density of LPR with mitigation | C30: dBW/MHz | D30: =D26+D27-D28 -> -88 | E30: -88 | F30: -88 | G30: -68 | H30: -68 | I30: -68 | J30: -68 | K30: -68 | L30: -68 | M30: -68 | N30: -68
B32: Direct interference component:
B33: Max. gain of the LPR antenna backlobe | C33: dBi | D33: 0 | E33: 0 | F33: 0 | G33: 0 | H33: 0 | I33: 0 | J33: 0 | K33: 0 | L33: 0 | M33: 0 | N33: 0
B34: Direct e.i.r.p. spectral density component sent to the EESS | C34: dBW/MHz | D34: =D30+D33 -> -88 | E34: -88 | F34: -88 | G34: -68 | H34: -68 | I34: -68 | J34: -68 | K34: -68 | L34: -68 | M34: -68 | N34: -68
B36: Scattered/reflected interference component:
B37: Additional losses for the scattered component | C37: dB | D37: -10 | E37: -10 | F37: -10 | G37: -10 | H37: -10 | I37: -10 | J37: -10 | K37: -10 | L37: -10 | M37: -10 | N37: -10
B38: Dielectric reflection attenuation (e.g. water with εr=8 for f>100GHz) | C38: dB | D38: -6.42 | E38: -6.42 | F38: -6.42 | G38: -6.42 | H38: -6.42 | I38: -6.42 | J38: -6.42 | K38: -6.42 | L38: -6.42 | M38: -6.42 | N38: -6.42
B39: Scattered/reflected e.i.r.p. spectral density component sent to the EESS | C39: dBW/MHz | D39: =D26+D27+D37+D38 -> -72.42 | E39: -72.42 | F39: -72.42 | G39: -52.42 | H39: -52.42 | I39: -52.42 | J39: -52.42 | K39: -52.42 | L39: -52.42 | M39: -52.42 | N39: -52.42
B41: Free space loss between LPR and EESS | C41: dB | D41: =20*LOG10(4*PI()*D14*1000/D8) -> 199.2131062 | E41: 195.1422874 | F41: 200.7060646 | G41: 195.7731166 | H41: 200.3995309 | I41: 199.53887 | J41: 195.8572421 | K41: 200.387745 | L41: 199.53887 | M41: 193.0387052 | N41: 197.3079162
B42: Direct e.i.r.p. spectral density component at the EESS antenna | C42: dBW/MHz | D42: =D34-D41 -> -287.2131062 | E42: -283.1422874 | F42: -288.7060646 | G42: -263.7731166 | H42: -268.3995309 | I42: -267.53887 | J42: -263.8572421 | K42: -268.387745 | L42: -267.53887 | M42: -261.0387052 | N42: -265.3079162
B43: Scattered/reflected e.i.r.p. spectral density component at the EESS antenna | C43: dBW/MHz | D43: =D39-D41 -> -271.6331062 | E43: -267.5622874 | F43: -273.1260646 | G43: -248.1931166 | H43: -252.8195309 | I43: -251.95887 | J43: -248.2772421 | K43: -252.807745 | L43: -251.95887 | M43: -245.4587052 | N43: -249.7279162
B44: Total e.i.r.p. spectral density at the EESS antenna (without consideration of atmospheric loss) | C44: dBW/MHz | D44: =10*LOG10(10^(D42/10)+10^(D43/10)) -> -271.5145719 | E44: -267.4437531 | F44: -273.0075303 | G44: -248.0745823 | H44: -252.7009965 | I44: -251.8403357 | J44: -248.1587077 | K44: -252.6892107 | L44: -251.8403357 | M44: -245.3401709 | N44: -249.6093818
B45: Atmospheric loss (according to contribution SE24(20)063_rev1) | C45: dB | D45: 5.7 | E45: 3.2 | F45: 7.4 | G45: 8.3 | H45: 16 | I45: 13.8 | J45: 8.3 | K45: 15.8 | L45: 13.8 | M45: 8.3 | N45: 14.7
B46: Polarisation mismatch loss | C46: dB | D46: 3 | E46: 3 | F46: 3 | G46: 3 | H46: 3 | I46: 3 | J46: 3 | K46: 3 | L46: 3 | M46: 3 | N46: 3
B47: Indoor-outdoor attenuation (according to clause 2.3 in the Report) | C47: dB | D47: 0 | E47: 0 | F47: 0 | G47: 0 | H47: 0 | I47: 0 | J47: 0 | K47: 0 | L47: 0 | M47: 0 | N47: 0
B48: Power spectral density at the EESS receiver in a 1 MHz bandwidth | C48: dBW/MHz | D48: =D44+D15-D45-D46-D47 -> -226.2145719 | E48: -229.7437531 | F48: -239.5075303 | G48: -214.5745823 | H48: -226.9009965 | I48: -211.7403357 | J48: -216.4587077 | K48: -228.4892107 | L48: -216.6403357 | M48: -206.6401709 | N48: -217.3093818
B49: Corresponding power at the EESS receiver in the reference bandwidth for a single LPR | C49: dBW | D49: =D48+10*LOG10(D9) -> -203.2042719 | E49: -206.7334531 | F49: -216.4972304 | G49: -191.5642823 | H49: -203.8906966 | I49: -188.7300357 | J49: -193.4484078 | K49: -205.4789108 | L49: -193.6300357 | M49: -183.629871 | N49: -194.2990819
B50: Number of interferers in EESS FOV on Earth's surface | D50: 1 | E50: 1 | F50: 1 | G50: 1 | H50: 1 | I50: 1 | J50: 1 | K50: 1 | L50: 1 | M50: 1 | N50: 1
B51: Corresponding received power at the EESS in the reference bandwidth within the EESS's FOV | C51: dBW | D51: =D49+10*LOG10(D50) -> -203.2042719 | E51: -206.7334531 | F51: -216.4972304 | G51: -191.5642823 | H51: -203.8906966 | I51: -188.7300357 | J51: -193.4484078 | K51: -205.4789108 | L51: -193.6300357 | M51: -183.629871 | N51: -194.2990819
B52: Margin with reference to ITU-R RS.2017-0 | C52: dB | D52: =D17-D18-D51 -> 28.20427192 | E52: 31.73345314 | F52: 41.49723036 | G52: 16.5642823 | H52: 28.89069659 | I52: 13.73003574 | J52: 18.44840779 | K52: 30.47891076 | L52: 18.63003574 | M52: 8.629870953 | N52: 19.29908188
B59: Aggregate interference study | D59: Band of EESS: 164-167 GHz | G59: Band of EESS: 174,8-191,8 GHz
B60: Victim EESS system | D60: Sensor P1 | E60: Sensor P2 (nadir) | F60: Sensor P2 (outer) | G60: MHS (nadir) | H60: MHS (outer) | I60: MWI | J60: MWS (nadir) | K60: MWS (outer) | L60: ICI | M60: AWS (nadir) | N60: AWS (outer)
B61: Sensor type | D61: Conical scan | E61: Nadir scan | F61: Nadir scan | G61: Nadir scan | H61: Nadir scan | I61: Conical scan | J61: Nadir scan | K61: Nadir scan | L61: Conical scan | M61: Nadir scan | N61: Nadir scan
B62: EESS: | C62: Units
B63: Assumed centre frequency of EESS | C63: GHz | D63: 165.5 | E63: 165.5 | F63: 165.5 | G63: 178.4 | H63: 178.4 | I63: 178.4 | J63: 178.4 | K63: 178.4 | L63: 178.4 | M63: 178.4 | N63: 178.4
B64: Wavelength of EESS | C64: m | D64: =2.99792458/D63/10 -> 0.001811434792 | E64: 0.001811434792 | F64: 0.001811434792 | G64: 0.001680450998 | H64: 0.001680450998 | I64: 0.001680450998 | J64: 0.001680450998 | K64: 0.001680450998 | L64: 0.001680450998 | M64: 0.001680450998 | N64: 0.001680450998
B65: Reference bandwidth | C65: MHz | D65: 200 | E65: 200 | F65: 200 | G65: 200 | H65: 200 | I65: 200 | J65: 200 | K65: 200 | L65: 200 | M65: 200 | N65: 200
B66: Orbit altitude | C66: km² | D66: 828 | E66: 824 | F66: 824 | G66: 822 | H66: 822 | I66: 830 | J66: 830 | K66: 830 | L66: 830 | M66: 600 | N66: 600
B67: Angle of incidence at Earth's surface (from zenith) | C67: deg | D67: 55.5 | E67: 0 | F67: 64 | G67: 0 | H67: 59 | I67: 53.3 | J67: 0 | K67: 58.5 | L67: 53.3 | M67: 0 | N67: 55.7
B68: Elevation angle at ground | C68: deg | D68: =90-D67 -> 34.5 | E68: 90 | F68: 26 | G68: 90 | H68: 31 | I68: 36.7 | J68: 90 | K68: 31.5 | L68: 36.7 | M68: 90 | N68: 34.3
B69: Off-nadir angle | C69: deg | D69: =(ASIN(SIN(D67*PI()/180)/(1+D66/6371)))*180/PI()+0.00000001 -> 46.83096782 | E69: 1e-08 | F69: 52.73661527 | G69: 1e-08 | H69: 49.39479043 | I69: 45.18299423 | J69: 1e-08 | K69: 48.96977181 | L69: 45.18299423 | M69: 1e-08 | N69: 49.02495908
B70: Slant path distance | C70: km | D70: =6371*SIN((ASIN(((6371+D66)/6371)*SIN(D69*PI()/180))*180/PI()-D69)*PI()/180)/SIN(D69*PI()/180) -> 1316.643352 | E70: 824 | F70: 1563.565476 | G70: 822 | H70: 1400.207928 | I70: 1268.117481 | J70: 830 | K70: 1398.309283 | L70: 1268.117481 | M70: 600 | N70: 980.8707785
B71: EESS antenna gain | C71: dBi | D71: 54 | E71: 43.9 | F71: 43.9 | G71: 44.8 | H71: 44.8 | I71: 56.9 | J71: 43 | K71: 43 | L71: 52 | M71: 50 | N71: 50
B72: Size of EESS FOV on Earth's surface | C72: km² | D72: 113 | E72: 254 | F72: 2083 | G72: 201 | H72: 1103 | I72: 61 | J72: 315 | K72: 1762 | L72: 164 | M72: 28 | N72: 141
B73: EESS interference criterion in the reference bandwidth (ITU-R RS.2017-0) | C73: dBW | D73: -163 | E73: -163 | F73: -163 | G73: -163 | H73: -163 | I73: -163 | J73: -163 | K73: -163 | L73: -163 | M73: -163 | N73: -163
B74: Apportionment factor | C74: dB | D74: 12 | E74: 12 | F74: 12 | G74: 12 | H74: 12 | I74: 12 | J74: 12 | K74: 12 | L74: 12 | M74: 12 | N74: 12
B76: LPR system:
B77: Conducted Tx power of LPR | C77: dBm | D77: -8 | E77: -8 | F77: -8 | G77: -8 | H77: -8 | I77: -8 | J77: -8 | K77: -8 | L77: -8 | M77: -8 | N77: -8
B78: Out-of-band unwanted emissions attenuation (if EESS victim is located in an adjacent band) | C78: dB | D78: 20 | E78: 20 | F78: 20 | G78: 0 | H78: 0 | I78: 0 | J78: 0 | K78: 0 | L78: 0 | M78: 0 | N78: 0
B79: Tx e.i.r.p. of LPR | C79: dBm | D79: =D77-D78+D84 -> 4 | E79: 4 | F79: 4 | G79: 24 | H79: 24 | I79: 24 | J79: 24 | K79: 24 | L79: 24 | M79: 24 | N79: 24
B80: Bandwidth of LPR Tx signal | C80: GHz | D80: 1 | E80: 1 | F80: 1 | G80: 1 | H80: 1 | I80: 1 | J80: 1 | K80: 1 | L80: 1 | M80: 1 | N80: 1
B81: Tx e.i.r.p. spectral density of LPR | C81: dBm/MHz | D81: =D79-10*LOG(D80*1000) -> -26 | E81: -26 | F81: -26 | G81: -6 | H81: -6 | I81: -6 | J81: -6 | K81: -6 | L81: -6 | M81: -6 | N81: -6
B82: Tx e.i.r.p. spectral density of LPR | C82: dBW/MHz | D82: =D81-30 -> -56 | E82: -56 | F82: -56 | G82: -36 | H82: -36 | I82: -36 | J82: -36 | K82: -36 | L82: -36 | M82: -36 | N82: -36
B83: Mitigation technique (e.g. activity factor, adaptive power control) | C83: dB | D83: 0 | E83: 0 | F83: 0 | G83: 0 | H83: 0 | I83: 0 | J83: 0 | K83: 0 | L83: 0 | M83: 0 | N83: 0
B84: Gain of the LPR antenna in direction of main radiation | C84: dBi | D84: 32 | E84: 32 | F84: 32 | G84: 32 | H84: 32 | I84: 32 | J84: 32 | K84: 32 | L84: 32 | M84: 32 | N84: 32
B85: Tx power spectral density of LPR without mitigation | C85: dBW/MHz | D85: =D82-D84 -> -88 | E85: -88 | F85: -88 | G85: -68 | H85: -68 | I85: -68 | J85: -68 | K85: -68 | L85: -68 | M85: -68 | N85: -68
B86: Tx power spectral density of LPR with mitigation | C86: dBW/MHz | D86: =D82+D83-D84 -> -88 | E86: -88 | F86: -88 | G86: -68 | H86: -68 | I86: -68 | J86: -68 | K86: -68 | L86: -68 | M86: -68 | N86: -68
B88: Direct interference component:
B89: Max. gain of the LPR antenna backlobe | C89: dBi | D89: 0 | E89: 0 | F89: 0 | G89: 0 | H89: 0 | I89: 0 | J89: 0 | K89: 0 | L89: 0 | M89: 0 | N89: 0
B90: Direct e.i.r.p. spectral density component sent to the EESS | C90: dBW/MHz | D90: =D86+D89 -> -88 | E90: -88 | F90: -88 | G90: -68 | H90: -68 | I90: -68 | J90: -68 | K90: -68 | L90: -68 | M90: -68 | N90: -68
B92: Scattered/reflected interference component:
B93: Additional losses for the scattered component | C93: dB | D93: -10 | E93: -10 | F93: -10 | G93: -10 | H93: -10 | I93: -10 | J93: -10 | K93: -10 | L93: -10 | M93: -10 | N93: -10
B94: Average dielectric reflection attenuation at sand slope | C94: dB | D94: -20 | E94: -20 | F94: -20 | G94: -20 | H94: -20 | I94: -20 | J94: -20 | K94: -20 | L94: -20 | M94: -20 | N94: -20
B95: Scattered/reflected e.i.r.p. spectral density component sent to the EESS | C95: dBW/MHz | D95: =D82+D83+D93+D94 -> -86 | E95: -86 | F95: -86 | G95: -66 | H95: -66 | I95: -66 | J95: -66 | K95: -66 | L95: -66 | M95: -66 | N95: -66
B97: Free space loss between LPR and EESS | C97: dB | D97: =20*LOG10(4*PI()*D70*1000/D64) -> 199.2131062 | E97: 195.1422874 | F97: 200.7060646 | G97: 195.7731166 | H97: 200.3995309 | I97: 199.53887 | J97: 195.8572421 | K97: 200.387745 | L97: 199.53887 | M97: 193.0387052 | N97: 197.3079162
B98: Direct e.i.r.p. spectral density component at the EESS antenna | C98: dBW/MHz | D98: =D90-D97 -> -287.2131062 | E98: -283.1422874 | F98: -288.7060646 | G98: -263.7731166 | H98: -268.3995309 | I98: -267.53887 | J98: -263.8572421 | K98: -268.387745 | L98: -267.53887 | M98: -261.0387052 | N98: -265.3079162
B99: Scattered/reflected e.i.r.p. spectral density component at the EESS antenna | C99: dBW/MHz | D99: =D95-D97 -> -285.2131062 | E99: -281.1422874 | F99: -286.7060646 | G99: -261.7731166 | H99: -266.3995309 | I99: -265.53887 | J99: -261.8572421 | K99: -266.387745 | L99: -265.53887 | M99: -259.0387052 | N99: -263.3079162
B100: Total e.i.r.p. spectral density at the EESS antenna (without consideration of atmospheric loss) | C100: dBW/MHz | D100: =10*LOG10(10^(D98/10)+10^(D99/10)) -> -283.0886802 | E100: -279.0178614 | F100: -284.5816386 | G100: -259.6486905 | H100: -264.2751048 | I100: -263.414444 | J100: -259.732816 | K100: -264.263319 | L100: -263.414444 | M100: -256.9142792 | N100: -261.1834901
B101: Atmospheric loss (according to contribution SE24(20)063_rev1) | C101: dB | D101: 5.7 | E101: 3.2 | F101: 7.4 | G101: 8.3 | H101: 16 | I101: 13.8 | J101: 8.3 | K101: 15.8 | L101: 13.8 | M101: 8.3 | N101: 14.7
B102: Polarisation mismatch loss | C102: dB | D102: 3 | E102: 3 | F102: 3 | G102: 3 | H102: 3 | I102: 3 | J102: 3 | K102: 3 | L102: 3 | M102: 3 | N102: 3
B103: Indoor-outdoor attenuation (according to clause 2.3 in the Report) | C103: dB | D103: =VLOOKUP(D68,'Indoor outdoor attenuation'!data_1,9) -> 22.41623389 | E103: =VLOOKUP(E68,'Indoor outdoor attenuation'!data_1,9) -> 26.61562776 | F103: =VLOOKUP(F68,'Indoor outdoor attenuation'!data_1,9) -> 22.92497143 | G103: =VLOOKUP(G68,'Indoor outdoor attenuation'!data_1,9) -> 26.61562776 | H103: =VLOOKUP(H68,'Indoor outdoor attenuation'!data_1,9) -> 22.52212379 | I103: =VLOOKUP(I68,'Indoor outdoor attenuation'!data_1,9) -> 22.31623389 | J103: =VLOOKUP(J68,'Indoor outdoor attenuation'!data_1,9) -> 26.61562776 | K103: =VLOOKUP(K68,'Indoor outdoor attenuation'!data_1,9) -> 22.52212379 | L103: =VLOOKUP(L68,'Indoor outdoor attenuation'!data_1,9) -> 22.31623389 | M103: =VLOOKUP(M68,'Indoor outdoor attenuation'!data_1,9) -> 26.61562776 | N103: =VLOOKUP(N68,'Indoor outdoor attenuation'!data_1,9) -> 22.41623389
B104: Power spectral density at the EESS receiver in a 1 MHz bandwidth | C104: dBW/MHz | D104: =D100+D71-D101-D102 -> -237.7886802 | E104: -241.3178614 | F104: -251.0816386 | G104: -226.1486905 | H104: -238.4751048 | I104: -223.314444 | J104: -228.032816 | K104: -240.063319 | L104: -228.214444 | M104: -218.2142792 | N104: -228.8834901
B105: Corresponding power at the EESS receiver in the reference bandwidth for a single LPR | C105: dBW | D105: =D104+10*LOG10(D65) -> -214.7783802 | E105: -218.3075614 | F105: -228.0713387 | G105: -203.1383906 | H105: -215.4648049 | I105: -200.304144 | J105: -205.0225161 | K105: -217.0530191 | L105: -205.204144 | M105: -195.2039792 | N105: -205.8731902
B106: Uniform LPR device density (with uniform distribution over Europe) | C106: 1/km² | D106: ='Market Size'!$H20 -> 0.002280718426 | E106: ='Market Size'!$H20 -> 0.002280718426 | F106: ='Market Size'!$H20 -> 0.002280718426 | G106: ='Market Size'!$H20 -> 0.002280718426 | H106: ='Market Size'!$H20 -> 0.002280718426 | I106: ='Market Size'!$H20 -> 0.002280718426 | J106: ='Market Size'!$H20 -> 0.002280718426 | K106: ='Market Size'!$H20 -> 0.002280718426 | L106: ='Market Size'!$H20 -> 0.002280718426 | M106: ='Market Size'!$H20 -> 0.002280718426 | N106: ='Market Size'!$H20 -> 0.002280718426
B107: Aggregate LPR device density (uniform distribution weighted with factor 75; acc. to annex 9 in the Report) | C107: 1/km² | D107: =D106*75 -> 0.171053882 | E107: 0.171053882 | F107: 0.171053882 | G107: 0.171053882 | H107: 0.171053882 | I107: 0.171053882 | J107: 0.171053882 | K107: 0.171053882 | L107: 0.171053882 | M107: 0.171053882 | N107: 0.171053882
B108: Number of aggregate LPR devices in the IFOV and active in the reference BW of the satellite | D108: =ROUNDUP(D107*D72,0) -> 20 | E108: 44 | F108: 357 | G108: 35 | H108: 189 | I108: 11 | J108: 54 | K108: 302 | L108: 29 | M108: 5 | N108: 25
B109: Percentage of LPRs operated indoors | C109: % | D109: 90 | E109: 90 | F109: 90 | G109: 90 | H109: 90 | I109: 90 | J109: 90 | K109: 90 | L109: 90 | M109: 90 | N109: 90
B110: Resulting total number of outdoor interferers in EESS FOV on Earth's surface | D110: =ROUNDUP((D109/100)*D108*10^-(D103/10)+((1-D109/100)*D108),0) -> 3 | E110: 5 | F110: 38 | G110: 4 | H110: 20 | I110: 2 | J110: 6 | K110: 32 | L110: 4 | M110: 1 | N110: 3
B111: Corresponding received power at the EESS in the reference bandwidth within the EESS's FOV | C111: dBW | D111: =D105+10*LOG10(D110) -> -210.0071677 | E111: -211.3178614 | F111: -212.2735027 | G111: -197.1177907 | H111: -202.4545049 | I111: -197.2938441 | J111: -197.2410036 | K111: -202.0015193 | L111: -199.1835441 | M111: -195.2039792 | N111: -201.1019776
B112: Margin with reference to ITU-R RS.2017-0 | C112: dB | D112: =D73-D74-D111 -> 35.00716766 | E112: 36.31786139 | F112: 37.27350268 | G112: 22.11779068 | H112: 27.45450493 | I112: 22.29384407 | J112: 22.24100358 | K112: 27.00151927 | L112: 24.18354411 | M112: 20.20397925 | N112: 26.10197762

Sheet EESS 231,5-250GHz
B1: Compatibility analysis between LPR in the frequency band 231,5-250 GHz and EESS
B3: Single-entry study | D3: Band of EESS: 226-231,5 GHz | F3: Band of EESS: 239-248 GHz
B4: Victim EESS system | D4: AWS (Nadir) | E4: AWS (outer) | F4: ICI | G4: AWS (Nadir) | H4: AWS (outer)
B5: Sensor type | D5: Nadir scan | E5: Nadir scan | F5: Conical Scan | G5: Nadir Scan | H5: Nadir Scan
B6: EESS: | C6: Units
B7: Assumed centre frequency of EESS | C7: GHz | D7: 228.75 | E7: 228.75 | F7: 243.5 | G7: 243.5 | H7: 243.5
B8: Wavelength of EESS | C8: m | D8: =2.99792458/D7/10 -> 0.001310568122 | E8: 0.001310568122 | F8: 0.001231180526 | G8: 0.001231180526 | H8: 0.001231180526
B9: Reference bandwidth | C9: MHz | D9: 200 | E9: 200 | F9: 200 | G9: 200 | H9: 200
B10: Orbit altitude | C10: km² | D10: 600 | E10: 600 | F10: 830 | G10: 600 | H10: 600
B11: Angle of incidence at Earth's surface (from zenith) | C11: deg | D11: 0 | E11: 55.7 | F11: 53.3 | G11: 0 | H11: 55.7
B12: Elevation angle at ground | C12: deg | D12: =90-D11 -> 90 | E12: 34.3 | F12: 36.7 | G12: 90 | H12: 34.3
B13: Off-nadir angle | C13: deg | D13: =(ASIN(SIN(D11*PI()/180)/(1+D10/6371)))*180/PI()+0.00000001 -> 1e-08 | E13: =(ASIN(SIN(E11*PI()/180)/(1+E10/6371)))*180/PI()+0.00000001 -> 49.02495908 | F13: =(ASIN(SIN(F11*PI()/180)/(1+F10/6371)))*180/PI()+0.00000001 -> 45.18299423 | G13: =(ASIN(SIN(G11*PI()/180)/(1+G10/6371)))*180/PI()+0.00000001 -> 1e-08 | H13: =(ASIN(SIN(H11*PI()/180)/(1+H10/6371)))*180/PI()+0.00000001 -> 49.02495908
B14: Slant path distance | C14: km | D14: =6371*SIN((ASIN(((6371+D10)/6371)*SIN(D13*PI()/180))*180/PI()-D13)*PI()/180)/SIN(D13*PI()/180) -> 600 | E14: =6371*SIN((ASIN(((6371+E10)/6371)*SIN(E13*PI()/180))*180/PI()-E13)*PI()/180)/SIN(E13*PI()/180) -> 980.8707785 | F14: =6371*SIN((ASIN(((6371+F10)/6371)*SIN(F13*PI()/180))*180/PI()-F13)*PI()/180)/SIN(F13*PI()/180) -> 1268.117481 | G14: =6371*SIN((ASIN(((6371+G10)/6371)*SIN(G13*PI()/180))*180/PI()-G13)*PI()/180)/SIN(G13*PI()/180) -> 600 | H14: =6371*SIN((ASIN(((6371+H10)/6371)*SIN(H13*PI()/180))*180/PI()-H13)*PI()/180)/SIN(H13*PI()/180) -> 980.8707785
B15: EESS antenna gain | C15: dBi | D15: 50 | E15: 50 | F15: 52 | G15: 50 | H15: 50
B16: Size of EESS FOV on Earth's surface | C16: km² | D16: 28 | E16: 141 | F16: 164 | G16: 28 | H16: 141
B17: EESS interference criterion in the reference bandwidth (ITU-R RS.2017-0) | C17: dBW | D17: -160 | E17: -160 | F17: -160 | G17: -160 | H17: -160
B18: Apportionment factor | C18: dB | D18: 12 | E18: 12 | F18: 12 | G18: 12 | H18: 12
B20: LPR system:
B21: Conducted Tx power of LPR | C21: dBm | D21: -8 | E21: -8 | F21: -8 | G21: -8 | H21: -8
B22: Out-of-band unwanted emissions attenuation (if EESS victim is located in an adjacent band) | C22: dB | D22: 20 | E22: 20 | F22: 0 | G22: 0 | H22: 0
B23: Tx e.i.r.p. of LPR | C23: dBm | D23: =D21-D22+D28 -> 4 | E23: 4 | F23: 24 | G23: 24 | H23: 24
B24: Bandwidth of LPR Tx signal | C24: GHz | D24: 1 | E24: 1 | F24: 1 | G24: 1 | H24: 1
B25: Tx e.i.r.p. spectral density of LPR | C25: dBm/MHz | D25: =D23-10*LOG(D24*1000) -> -26 | E25: -26 | F25: -6 | G25: -6 | H25: -6
B26: Tx e.i.r.p. spectral density of LPR | C26: dBW/MHz | D26: =D25-30 -> -56 | E26: -56 | F26: -36 | G26: -36 | H26: -36
B27: Mitigation technique (e.g. activity factor, adaptive power control) | C27: dB | D27: 0 | E27: 0 | F27: 0 | G27: 0 | H27: 0
B28: Gain of the LPR antenna in direction of main radiation | C28: dBi | D28: 32 | E28: 32 | F28: 32 | G28: 32 | H28: 32
B29: Tx power spectral density of LPR without mitigation | C29: dBW/MHz | D29: =D26-D28 -> -88 | E29: -88 | F29: -68 | G29: -68 | H29: -68
B30: Tx power spectral density of LPR with mitigation | C30: dBW/MHz | D30: =D26+D27-D28 -> -88 | E30: -88 | F30: -68 | G30: -68 | H30: -68
B32: Direct interference component:
B33: Max. gain of the LPR antenna backlobe | C33: dBi | D33: -1 | E33: -1 | F33: -1 | G33: -1 | H33: -1
B34: Direct e.i.r.p. spectral density component sent to the EESS | C34: dBW/MHz | D34: =D30+D33 -> -89 | E34: -89 | F34: -69 | G34: -69 | H34: -69
B36: Scattered/reflected interference component:
B37: Additional losses for the scattered component | C37: dB | D37: -10 | E37: -10 | F37: -10 | G37: -10 | H37: -10
B38: Dielectric reflection attenuation (e.g. water with εr=8 for f>100GHz) | C38: dB | D38: -6.42 | E38: -6.42 | F38: -6.42 | G38: -6.42 | H38: -6.42
B39: Scattered/reflected e.i.r.p. spectral density component sent to the EESS | C39: dBW/MHz | D39: =D26+D27+D37+D38 -> -72.42 | E39: -72.42 | F39: -52.42 | G39: -52.42 | H39: -52.42
B41: Free space loss between LPR and EESS | C41: dB | D41: =20*LOG10(4*PI()*D14*1000/D8) -> 195.1980303 | E41: 199.4672412 | F41: 202.2409523 | G41: 195.7407875 | H41: 200.0099985
B42: Direct e.i.r.p. spectral density component at the EESS antenna | C42: dBW/MHz | D42: =D34-D41 -> -284.1980303 | E42: -288.4672412 | F42: -271.2409523 | G42: -264.7407875 | H42: -269.0099985
B43: Scattered/reflected e.i.r.p. spectral density component at the EESS antenna | C43: dBW/MHz | D43: =D39-D41 -> -267.6180303 | E43: -271.8872412 | F43: -254.6609523 | G43: -248.1607875 | H43: -252.4299985
B44: Total e.i.r.p. spectral density at the EESS antenna (without consideration of atmospheric loss) | C44: dBW/MHz | D44: =10*LOG10(10^(D42/10)+10^(D43/10)) -> -267.5236123 | E44: -271.7928232 | F44: -254.5665343 | G44: -248.0663695 | H44: -252.3355804
B45: Atmospheric loss (according to contribution SE24(20)063_rev1) | C45: dB | D45: 4.8 | E45: 8.5 | F45: 8.8 | G45: 5.3 | H45: 9.3
B46: Polarisation mismatch loss | C46: dB | D46: 3 | E46: 3 | F46: 3 | G46: 3 | H46: 3
B47: Indoor-outdoor attenuation (according to clause 2.3 in the Report) | C47: dB | D47: 0 | E47: 0 | F47: 0 | G47: 0 | H47: 0
B48: Power spectral density at the EESS receiver in a 1 MHz bandwidth | C48: dBW/MHz | D48: =D44+D15-D45-D46-D47 -> -225.3236123 | E48: =E44+E15-E45-E46-E47 -> -233.2928232 | F48: =F44+F15-F45-F46-F47 -> -214.3665343 | G48: =G44+G15-G45-G46-G47 -> -206.3663695 | H48: =H44+H15-H45-H46-H47 -> -214.6355804
B49: Corresponding power at the EESS receiver in the reference bandwidth for a single LPR | C49: dBW | D49: =D48+10*LOG10(D9) -> -202.3133123 | E49: -210.2825232 | F49: -191.3562344 | G49: -183.3560696 | H49: -191.6252805
B50: Number of interferers in EESS FOV on Earth's surface | D50: 1 | E50: 1 | F50: 1 | G50: 1 | H50: 1
B51: Corresponding received power at the EESS in the reference bandwidth within the EESS's FOV | C51: dBW | D51: =D49+10*LOG10(D50) -> -202.3133123 | E51: =E49+10*LOG10(E50) -> -210.2825232 | F51: =F49+10*LOG10(F50) -> -191.3562344 | G51: =G49+10*LOG10(G50) -> -183.3560696 | H51: =H49+10*LOG10(H50) -> -191.6252805
B52: Margin with reference to ITU-R RS.2017-0 | C52: dB | D52: =D17-D18-D51 -> 30.31331231 | E52: =E17-E18-E51 -> 38.28252324 | F52: =F17-F18-F51 -> 19.35623435 | G52: =G17-G18-G51 -> 11.35606957 | H52: =H17-H18-H51 -> 19.62528049
B59: Aggregate interference study | D59: Band of EESS: 226-231,5 GHz | F59: Band of EESS: 239-248 GHz
B60: Victim EESS system | D60: AWS (Nadir) | E60: AWS (outer) | F60: ICI | G60: AWS (Nadir) | H60: AWS (outer)
B61: Sensor type | D61: Nadir scan | E61: Nadir scan | F61: Conical Scan | G61: Nadir Scan | H61: Nadir Scan
B62: EESS: | C62: Units
B63: Assumed centre frequency of EESS | C63: GHz | D63: 228.75 | E63: 228.75 | F63: 243.5 | G63: 243.5 | H63: 243.5
B64: Wavelength of EESS | C64: m | D64: =2.99792458/D63/10 -> 0.001310568122 | E64: 0.001310568122 | F64: 0.001231180526 | G64: 0.001231180526 | H64: 0.001231180526
B65: Reference bandwidth | C65: MHz | D65: 200 | E65: 200 | F65: 200 | G65: 200 | H65: 200
B66: Orbit altitude | C66: km² | D66: 600 | E66: 600 | F66: 830 | G66: 600 | H66: 600
B67: Angle of incidence at Earth's surface (from zenith) | C67: deg | D67: 0 | E67: 55.7 | F67: 53.3 | G67: 0 | H67: 55.7
B68: Elevation angle at ground | C68: deg | D68: =90-D67 -> 90 | E68: 34.3 | F68: 36.7 | G68: 90 | H68: 34.3
B69: Off-nadir angle | C69: deg | D69: =(ASIN(SIN(D67*PI()/180)/(1+D66/6371)))*180/PI()+0.00000001 -> 1e-08 | E69: =(ASIN(SIN(E67*PI()/180)/(1+E66/6371)))*180/PI()+0.00000001 -> 49.02495908 | F69: =(ASIN(SIN(F67*PI()/180)/(1+F66/6371)))*180/PI()+0.00000001 -> 45.18299423 | G69: =(ASIN(SIN(G67*PI()/180)/(1+G66/6371)))*180/PI()+0.00000001 -> 1e-08 | H69: =(ASIN(SIN(H67*PI()/180)/(1+H66/6371)))*180/PI()+0.00000001 -> 49.02495908
B70: Slant path distance | C70: km | D70: =6371*SIN((ASIN(((6371+D66)/6371)*SIN(D69*PI()/180))*180/PI()-D69)*PI()/180)/SIN(D69*PI()/180) -> 600 | E70: =6371*SIN((ASIN(((6371+E66)/6371)*SIN(E69*PI()/180))*180/PI()-E69)*PI()/180)/SIN(E69*PI()/180) -> 980.8707785 | F70: =6371*SIN((ASIN(((6371+F66)/6371)*SIN(F69*PI()/180))*180/PI()-F69)*PI()/180)/SIN(F69*PI()/180) -> 1268.117481 | G70: =6371*SIN((ASIN(((6371+G66)/6371)*SIN(G69*PI()/180))*180/PI()-G69)*PI()/180)/SIN(G69*PI()/180) -> 600 | H70: =6371*SIN((ASIN(((6371+H66)/6371)*SIN(H69*PI()/180))*180/PI()-H69)*PI()/180)/SIN(H69*PI()/180) -> 980.8707785
B71: EESS antenna gain | C71: dBi | D71: 50 | E71: 50 | F71: 52 | G71: 50 | H71: 50
B72: Size of EESS FOV on Earth's surface | C72: km² | D72: 28 | E72: 141 | F72: 164 | G72: 28 | H72: 141
B73: EESS interference criterion in the reference bandwidth (ITU-R RS.2017-0) | C73: dBW | D73: -160 | E73: -160 | F73: -160 | G73: -160 | H73: -160
B74: Apportionment factor | C74: dB | D74: 12 | E74: 12 | F74: 12 | G74: 12 | H74: 12
B76: LPR system:
B77: Conducted Tx power of LPR | C77: dBm | D77: -8 | E77: -8 | F77: -8 | G77: -8 | H77: -8
B78: Out-of-band unwanted emissions attenuation (if EESS victim is located in an adjacent band) | C78: dB | D78: 20 | E78: 20 | F78: 0 | G78: 0 | H78: 0
B79: Tx e.i.r.p. of LPR | C79: dBm | D79: =D77-D78+D84 -> 4 | E79: 4 | F79: 24 | G79: 24 | H79: 24
B80: Bandwidth of LPR Tx signal | C80: GHz | D80: 1 | E80: 1 | F80: 1 | G80: 1 | H80: 1
B81: Tx e.i.r.p. spectral density of LPR | C81: dBm/MHz | D81: =D79-10*LOG(D80*1000) -> -26 | E81: -26 | F81: -6 | G81: -6 | H81: -6
B82: Tx e.i.r.p. spectral density of LPR | C82: dBW/MHz | D82: =D81-30 -> -56 | E82: -56 | F82: -36 | G82: -36 | H82: -36
B83: Mitigation technique (e.g. activity factor, adaptive power control) | C83: dB | D83: 0 | E83: 0 | F83: 0 | G83: 0 | H83: 0
B84: Gain of the LPR antenna in direction of main radiation | C84: dBi | D84: 32 | E84: 32 | F84: 32 | G84: 32 | H84: 32
B85: Tx power spectral density of LPR without mitigation | C85: dBW/MHz | D85: =D82-D84 -> -88 | E85: -88 | F85: -68 | G85: -68 | H85: -68
B86: Tx power spectral density of LPR with mitigation | C86: dBW/MHz | D86: =D82+D83-D84 -> -88 | E86: -88 | F86: -68 | G86: -68 | H86: -68
B88: Direct interference component:
B89: Max. gain of the LPR antenna backlobe | C89: dBi | D89: 0 | E89: 0 | F89: 0 | G89: 0 | H89: 0
B90: Direct e.i.r.p. spectral density component sent to the EESS | C90: dBW/MHz | D90: =D86+D89 -> -88 | E90: -88 | F90: -68 | G90: -68 | H90: -68
B92: Scattered/reflected interference component:
B93: Additional losses for the scattered component | C93: dB | D93: -10 | E93: -10 | F93: -10 | G93: -10 | H93: -10
B94: Average dielectric reflection attenuation at sand slope | C94: dB | D94: -20 | E94: -20 | F94: -25 | G94: -25 | H94: -25
B95: Scattered/reflected e.i.r.p. spectral density component sent to the EESS | C95: dBW/MHz | D95: =D82+D83+D93+D94 -> -86 | E95: =E82+E83+E93+E94 -> -86 | F95: =F82+F83+F93+F94 -> -71 | G95: =G82+G83+G93+G94 -> -71 | H95: =H82+H83+H93+H94 -> -71
B97: Free space loss between LPR and EESS | C97: dB | D97: =20*LOG10(4*PI()*D70*1000/D64) -> 195.1980303 | E97: =20*LOG10(4*PI()*E70*1000/E64) -> 199.4672412 | F97: =20*LOG10(4*PI()*F70*1000/F64) -> 202.2409523 | G97: =20*LOG10(4*PI()*G70*1000/G64) -> 195.7407875 | H97: =20*LOG10(4*PI()*H70*1000/H64) -> 200.0099985
B98: Direct e.i.r.p. spectral density component at the EESS antenna | C98: dBW/MHz | D98: =D90-D97 -> -283.1980303 | E98: =E90-E97 -> -287.4672412 | F98: =F90-F97 -> -270.2409523 | G98: =G90-G97 -> -263.7407875 | H98: =H90-H97 -> -268.0099985
B99: Scattered/reflected e.i.r.p. spectral density component at the EESS antenna | C99: dBW/MHz | D99: =D95-D97 -> -281.1980303 | E99: -285.4672412 | F99: -273.2409523 | G99: -266.7407875 | H99: -271.0099985
B100: Total e.i.r.p. spectral density at the EESS antenna (without consideration of atmospheric loss) | C100: dBW/MHz | D100: =10*LOG10(10^(D98/10)+10^(D99/10)) -> -279.0736043 | E100: -283.3428152 | F100: -268.4766037 | G100: -261.9764389 | H100: -266.2456498
B101: Atmospheric loss (according to contribution SE24(20)WI71#9-3) | C101: dB | D101: 4.8 | E101: 8.5 | F101: 8.8 | G101: 5.3 | H101: 9.3
B102: Polarisation mismatch loss | C102: dB | D102: 3 | E102: 3 | F102: 3 | G102: 3 | H102: 3
B103: Indoor-outdoor attenuation (according to clause 2.3 in the Report) | C103: dB | D103: =VLOOKUP(D68,'Indoor outdoor attenuation'!data_1,9) -> 26.61562776 | E103: =VLOOKUP(E68,'Indoor outdoor attenuation'!data_1,9) -> 22.41623389 | F103: =VLOOKUP(F68,'Indoor outdoor attenuation'!data_1,9) -> 22.31623389 | G103: =VLOOKUP(G68,'Indoor outdoor attenuation'!data_1,9) -> 26.61562776 | H103: =VLOOKUP(H68,'Indoor outdoor attenuation'!data_1,9) -> 22.41623389
B104: Power spectral density at the EESS receiver in a 1 MHz bandwidth | C104: dBW/MHz | D104: =D100+D71-D101-D102 -> -236.8736043 | E104: =E100+E71-E101-E102 -> -244.8428152 | F104: =F100+F71-F101-F102 -> -228.2766037 | G104: =G100+G71-G101-G102 -> -220.2764389 | H104: =H100+H71-H101-H102 -> -228.5456498
B105: Corresponding power at the EESS receiver in the reference bandwidth for a single LPR | C105: dBW | D105: =D104+10*LOG10(D65) -> -213.8633043 | E105: =E104+10*LOG10(E65) -> -221.8325152 | F105: =F104+10*LOG10(F65) -> -205.2663037 | G105: =G104+10*LOG10(G65) -> -197.266139 | H105: =H104+10*LOG10(H65) -> -205.5353499
B106: Uniform LPR device density (with uniform distribution over Europe) | C106: 1/km² | D106: ='Market Size'!$H21 -> 0.001520478951 | E106: ='Market Size'!$H21 -> 0.001520478951 | F106: ='Market Size'!$H21 -> 0.001520478951 | G106: ='Market Size'!$H21 -> 0.001520478951 | H106: ='Market Size'!$H21 -> 0.001520478951
B107: Aggregate LPR device density (uniform distribution weighted with factor 75; acc. to annex 9 in the Report) | C107: 1/km² | D107: =D106*75 -> 0.1140359213 | E107: =E106*75 -> 0.1140359213 | F107: =F106*75 -> 0.1140359213 | G107: =G106*75 -> 0.1140359213 | H107: =H106*75 -> 0.1140359213
B108: Number of aggregate LPR devices in the IFOV and active in the reference BW of the satellite | D108: =ROUNDUP(D107*D72,0) -> 4 | E108: =ROUNDUP(E107*E72,0) -> 17 | F108: =ROUNDUP(F107*F72,0) -> 19 | G108: =ROUNDUP(G107*G72,0) -> 4 | H108: =ROUNDUP(H107*H72,0) -> 17
B109: Percentage of LPRs operated indoors | C109: % | D109: 90 | E109: 90 | F109: 90 | G109: 90 | H109: 90
B110: Resulting total number of outdoor interferers in EESS FOV on Earth's surface | D110: =ROUNDUP((D109/100)*D108*10^-(D103/10)+((1-D109/100)*D108),0) -> 1 | E110: =ROUNDUP((E109/100)*E108*10^-(E103/10)+((1-E109/100)*E108),0) -> 2 | F110: =ROUNDUP((F109/100)*F108*10^-(F103/10)+((1-F109/100)*F108),0) -> 3 | G110: =ROUNDUP((G109/100)*G108*10^-(G103/10)+((1-G109/100)*G108),0) -> 1 | H110: =ROUNDUP((H109/100)*H108*10^-(H103/10)+((1-H109/100)*H108),0) -> 2
B111: Corresponding received power at the EESS in the reference bandwidth within the EESS's FOV | C111: dBW | D111: =D105+10*LOG10(D110) -> -213.8633043 | E111: =E105+10*LOG10(E110) -> -218.8222153 | F111: =F105+10*LOG10(F110) -> -200.4950912 | G111: =G105+10*LOG10(G110) -> -197.266139 | H111: =H105+10*LOG10(H110) -> -202.5250499
B112: Margin with reference to ITU-R RS.2017-0 | C112: dB | D112: =D73-D74-D111 -> 41.8633043 | E112: =E73-E74-E111 -> 46.82221527 | F112: =F73-F74-F111 -> 28.49509119 | G112: =G73-G74-G111 -> 25.26613896 | H112: =H73-H74-H111 -> 30.52504993

Sheet RAS 116-148,5GHz
B1: Compatibility analysis between LPR in the frequency band 116 to 148,5 GHz and RAS systems
B5: Victim RAS system | D5: Band of RAS system: 76-116 GHz | F5: Band of RAS system: 123-158,5 GHz
B6: Sensor type | D6: Continuum observation | E6: Spectral-line observation | F6: Continuum observation | G6: Spectral-line observation
B7: RAS system: | C7: Units
B8: Assumed centre frequency of RAS system | C8: GHz | D8: 96 | E8: 96 | F8: 135.75 | G8: 135.75
B9: Wavelength of RAS system | C9: m | D9: =2.99792458/D8/10 -> 0.003122838104 | E9: 0.003122838104 | F9: 0.002208415897 | G9: 0.002208415897
B10: Bandwidth (ITU-R RA.769-2) | C10: MHz | D10: 8000 | E10: 1 | F10: 8000 | G10: 1
B11: Antenna gain in the direction of interferer (ITU-R RA.769-2) | C11: dBi | D11: 0 | E11: 0 | F11: 0 | G11: 0
B12: Feeder (insertion) loss | C12: dB | D12: 0 | E12: 0 | F12: 0 | G12: 0
B13: Threshold Interference level at receiver input (ITU-R RA.769-2) | C13: dBW | D13: -184.5 | E13: -209 | F13: -189.5 | G13: -209
B14: Threshold Interference level at receiver input | C14: dBm | D14: =D13+30 -> -154.5 | E14: =E13+30 -> -179 | F14: -159.5 | G14: -179
B16: LPR system:
B17: Conducted Tx power of LPR | C17: dBm | D17: -8 | E17: -8 | F17: -8 | G17: -8
B18: Out-of-band unwanted emissions attenuation (if RAS victim is located in an adjacent band) | C18: dB | D18: 20 | E18: 20 | F18: 0 | G18: 0
B19: Tx power e.i.r.p. of LPR | C19: dBm | D19: =D17-D18+D25 -> 4 | E19: =E17-E18+E25 -> 4 | F19: =F17-F18+F25 -> 24 | G19: =G17-G18+G25 -> 24
B20: Bandwidth of LPR Tx signal | C20: GHz | D20: 1.6 | E20: 1.6 | F20: 1.6 | G20: 1.6
B21: Mitigation technique (e.g. activity factor, adaptive power control) | C21: dB | D21: 0 | E21: 0 | F21: 0 | G21: 0
B22: Tx e.i.r.p. spectral density of LPR | C22: dBm/MHz | D22: =D19-10*LOG(D20*1000) -> -28.04119983 | E22: -28.04119983 | F22: -8.041199827 | G22: -8.041199827
B23: Tx e.i.r.p. spectral density of LPR with mitigation | C23: dBm/MHz | D23: =D19+D21-10*LOG(D20*1000) -> -28.04119983 | E23: -28.04119983 | F23: -8.041199827 | G23: -8.041199827
B24: Tx e.i.r.p. of LPR with mitigation | C24: dBm | D24: =D19+D21 -> 4 | E24: =E19+E21 -> 4 | F24: =F19+F21 -> 24 | G24: =G19+G21 -> 24
B25: Gain of the LPR antenna in direction of main radiation | C25: dBi | D25: 32 | E25: 32 | F25: 32 | G25: 32
B27: Side-lobe interference component:
B28: Antenna side-lobe gain >60° offset angle | C28: dBi | D28: 0 | E28: 0 | F28: 0 | G28: 0
B29: Direct e.i.r.p. component sent to the RAS | C29: dBm | D29: =D24-D25+D28 -> -28 | E29: =E24-E25+E28 -> -28 | F29: =F24-F25+F28 -> -8 | G29: =G24-G25+G28 -> -8
B31: Reflected interference component:
B32: Sidelobe suppression (first sidelobe, offset angle 20-30° (24° nominal) | C32: dB | D32: -28 | E32: -28 | F32: -28 | G32: -28
B33: Reflection loss on sand surface (angle of incidence 33°) | C33: dB | D33: 18 | E33: 18 | F33: 18 | G33: 18
B34: Reflected e.i.r.p. component sent to the RAS | C34: dBm | D34: =D24+D32-D33 -> -42 | E34: =E24+E32-E33 -> -42 | F34: =F24+F32-F33 -> -22 | G34: =G24+G32-G33 -> -22
B36: Total e.i.r.p. towards RAS | C36: dBm | D36: =10*LOG10(10^(D29/10)+10^(D34/10)) -> -27.83045711 | E36: -27.83045711 | F36: -7.830457107 | G36: -7.830457107
B37: BWCF | C37: dB | D37: =IF(D20*1000<=D10, 0, 10*LOG10(D10/D20/1000)) -> 0 | E37: =IF(E20*1000<=E10, 0, 10*LOG10(E10/E20/1000)) -> -32.04119983 | F37: =IF(F20*1000<=F10, 0, 10*LOG10(F10/F20/1000)) -> 0 | G37: =IF(G20*1000<=G10, 0, 10*LOG10(G10/G20/1000)) -> -32.04119983
B40: Separation distance calculation:
B41: Minimum coupling loss (MCL) | C41: dB | D41: =D36-(D14-D11+D12)+D37 -> 126.6695429 | E41: =E36-(E14-E11+E12)+E37 -> 119.1283431 | F41: =F36-(F14-F11+F12)+F37 -> 151.6695429 | G41: =G36-(G14-G11+G12)+G37 -> 139.1283431
B42: Separation distance with FSL model | C42: km | D42: =10^((D41-32.44-20*LOG10(D8*1000))/20) -> 0.5360507545 | E42: =10^((E41-32.44-20*LOG10(E8*1000))/20) -> 0.2249810401 | F42: =10^((F41-32.44-20*LOG10(F8*1000))/20) -> 6.741201463 | G42: =10^((G41-32.44-20*LOG10(G8*1000))/20) -> 1.59102614
B43: Specific attenuation due to atmospheric gases (acc. to ITU-R P.835-6 winter high latitude model) | C43: dB/km | D43: 0.06 | E43: 0.06 | F43: 0.1 | G43: 0.1
B44: Separation distance adjusted for attenuation due to atmospheric gases | C44: km | D44: 0.5340770349 | E44: 0.2246112446 | F44: 6.271483663 | G44: 1.562544331
B45: Balance check (should be close to zero) | C45: dB | D45: =D41-20*LOG10(D44)-D44*D43-32.44-20*LOG10(D8*1000) -> -4.467233978e-06 | E45: =E41-20*LOG10(E44)-E44*E43-32.44-20*LOG10(E8*1000) -> 0.0008118441988 | F45: =F41-20*LOG10(F44)-F44*F43-32.44-20*LOG10(F8*1000) -> 0.0001918552095 | G45: =G41-20*LOG10(G44)-G44*G43-32.44-20*LOG10(G8*1000) -> 0.0006449148997
D46: Note 2 | F46: Note 1
B48: Note 1: A power spectral density of -8dBm/MHz in the whole RAS bandwidth of 8GHz would result in a separation distance of 13km. Therefore, a separation distance of at least 13km should be considered in order to protect RAS.
B50: Note 2: A power spectral density of -8dBm/MHz in the whole RAS bandwidth of 8GHz would result in a separation distance of 1.2km. Therefore, a separation distance of at least 1.2km should be considered in order to protect RAS.

Sheet RAS 167-182GHz
B1: Compatibility analysis between LPR in the frequency band 167 to 182 GHz and RAS systems
B5: Victim RAS system | D5: Band of RAS system: 164-174,5 GHz | F5: Band of RAS system: 182-185 GHz
B6: Sensor type | D6: Continuum observation | E6: Spectral-line observation | F6: Continuum observation | G6: Spectral-line observation
B7: RAS system: | C7: Units
B8: Assumed centre frequency of RAS system | C8: GHz | D8: 170.75 | E8: 170.75 | F8: 183.5 | G8: 183.5
B9: Wavelength of RAS system | C9: m | D9: =2.99792458/D8/10 -> 0.001755739139 | E9: 0.001755739139 | F9: =2.99792458/F8/10 -> 0.001633746365 | G9: 0.001633746365
B10: Bandwidth (ITU-R RA.769-2) | C10: MHz | D10: 8000 | E10: 1 | F10: 8000 | G10: 1
B11: Antenna gain in the direction of interferer (ITU-R RA.769-2) | C11: dBi | D11: 0 | E11: 0 | F11: 0 | G11: 0
B12: Feeder (insertion) loss | C12: dB | D12: 0 | E12: 0 | F12: 0 | G12: 0
B13: Threshold Interference level at receiver input (ITU-R RA.769-2) | C13: dBW | D13: -189.1 | E13: -209 | F13: -182.4 | G13: -209
B14: Threshold Interference level at receiver input | C14: dBm | D14: =D13+30 -> -159.1 | E14: -179 | F14: =F13+30 -> -152.4 | G14: -179
B16: LPR system:
B17: Conducted Tx power of LPR | C17: dBm | D17: -8 | E17: -8 | F17: -8 | G17: -8
B18: Out-of-band unwanted emissions attenuation (if RAS victim is located in an adjacent band) | C18: dB | D18: 0 | E18: 0 | F18: 20 | G18: 20
B19: Tx power e.i.r.p. of LPR | C19: dBm | D19: =D17-D18+D25 -> 24 | E19: =E17-E18+E25 -> 24 | F19: =F17-F18+F25 -> 4 | G19: =G17-G18+G25 -> 4
B20: Bandwidth of LPR Tx signal | C20: GHz | D20: 1 | E20: 1 | F20: 1 | G20: 1
B21: Mitigation technique (e.g. activity factor, adaptive power control) | C21: dB | D21: 0 | E21: 0 | F21: 0 | G21: 0
B22: Tx e.i.r.p. spectral density of LPR | C22: dBm/MHz | D22: =D19-10*LOG(D20*1000) -> -6 | E22: -6 | F22: =F19-10*LOG(F20*1000) -> -26 | G22: -26
B23: Tx e.i.r.p. spectral density of LPR with mitigation | C23: dBm/MHz | D23: =D19+D21-10*LOG(D20*1000) -> -6 | E23: -6 | F23: =F19+F21-10*LOG(F20*1000) -> -26 | G23: -26
B24: Tx e.i.r.p. of LPR with mitigation | C24: dBm | D24: =D19+D21 -> 24 | E24: =E19+E21 -> 24 | F24: =F19+F21 -> 4 | G24: =G19+G21 -> 4
B25: Gain of the LPR antenna in direction of main radiation | C25: dBi | D25: 32 | E25: 32 | F25: 32 | G25: 32
B27: Side-lobe interference component:
B28: Antenna side-lobe gain >60° offset angle | C28: dBi | D28: -1 | E28: -1 | F28: -1 | G28: -1
B29: Direct e.i.r.p. component sent to the RAS | C29: dBm | D29: =D24-D25+D28 -> -9 | E29: =E24-E25+E28 -> -9 | F29: =F24-F25+F28 -> -29 | G29: =G24-G25+G28 -> -29
B31: Reflected interference component:
B32: Sidelobe suppression (first sidelobe, offset angle 20-30° (24° nominal) | C32: dB | D32: -29 | E32: -29 | F32: -29 | G32: -29
B33: Reflection loss on sand surface (angle of incidence 33°) | C33: dB | D33: 23 | E33: 23 | F33: 23 | G33: 23
B34: Reflected e.i.r.p. component sent to the RAS | C34: dBm | D34: =D24+D32-D33 -> -28 | E34: =E24+E32-E33 -> -28 | F34: =F24+F32-F33 -> -48 | G34: =G24+G32-G33 -> -48
B36: Total e.i.r.p. towards RAS | C36: dBm | D36: =10*LOG10(10^(D29/10)+10^(D34/10)) -> -8.945666858 | E36: -8.945666858 | F36: =10*LOG10(10^(F29/10)+10^(F34/10)) -> -28.94566686 | G36: -28.94566686
B37: BWCF | C37: dB | D37: =IF(D20*1000<=D10, 0, 10*LOG10(D10/D20/1000)) -> 0 | E37: =IF(E20*1000<=E10, 0, 10*LOG10(E10/E20/1000)) -> -30 | F37: =IF(F20*1000<=F10, 0, 10*LOG10(F10/F20/1000)) -> 0 | G37: =IF(G20*1000<=G10, 0, 10*LOG10(G10/G20/1000)) -> -30
B40: Separation distance calculation:
B41: Minimum coupling loss (MCL) | C41: dB | D41: =D36-(D14-D11+D12)+D37 -> 150.1543331 | E41: =E36-(E14-E11+E12)+E37 -> 140.0543331 | F41: =F36-(F14-F11+F12)+F37 -> 123.4543331 | G41: =G36-(G14-G11+G12)+G37 -> 120.0543331
B42: Separation distance with FSL model | C42: km | D42: =10^((D41-32.44-20*LOG10(D8*1000))/20) -> 4.501486425 | E42: =10^((E41-32.44-20*LOG10(E8*1000))/20) -> 1.407200383 | F42: =10^((F41-32.44-20*LOG10(F8*1000))/20) -> 0.1936781323 | G42: =10^((G41-32.44-20*LOG10(G8*1000))/20) -> 0.130942488
B43: Specific attenuation due to atmospheric gases (acc. to ITU-R P.835-6 winter high latitude model) | C43: dB/km | D43: 0.21 | E43: 0.21 | F43: 3.55 | G43: 3.55
B44: Separation distance adjusted for attenuation due to atmospheric gases | C44: km | D44: 4.07877367 | E44: 1.361615939 | F44: 0.1799456655 | G44: 0.1244479393
B45: Balance check (should be close to zero) | C45: dB | D45: =D41-20*LOG10(D44)-D44*D43-32.44-20*LOG10(D8*1000) -> -1.57173657e-05 | E45: =E41-20*LOG10(E44)-E44*E43-32.44-20*LOG10(E8*1000) -> 8.701361028e-05 | F45: =F41-20*LOG10(F44)-F44*F43-32.44-20*LOG10(F8*1000) -> -2.313862817e-05 | G45: =G41-20*LOG10(G44)-G44*G43-32.44-20*LOG10(G8*1000) -> 6.739210781e-05
D46: Note 1 | F46: Note 2
B48: Note 1: A power spectral density of -6dBm/MHz in the whole RAS bandwidth of 8GHz would result in a separation distance of 10km. Therefore, a separation distance of at least 10km should be considered in order to protect RAS.
B50: Note 2: A power spectral density of -6dBm/MHz in the whole RAS bandwidth of 8GHz would result in a separation distance of 0.5km. Therefore, a separation distance of at least 0.5km should be considered in order to protect RAS.

Sheet RAS 231,5-250GHz
B1: Compatibility analysis between LPR in the frequency band 231,5 to 250 GHz and RAS systems
B5: Victim RAS system | D5: Band of RAS system: 190-231,5 GHz | F5: Band of RAS system: 235-238 GHz | H5: Band of RAS system: 241-275 GHz
B6: Sensor type | D6: Continuum observation | E6: Spectral-line observation | F6: Continuum observation | G6: Spectral-line observation | H6: Continuum observation | I6: Spectral-line observation
B7: RAS system: | C7: Units
B8: Assumed centre frequency of RAS system | C8: GHz | D8: 210.75 | E8: 210.75 | F8: 236.5 | G8: 236.5 | H8: 245.5 | I8: 245.5
B9: Wavelength of RAS system | C9: m | D9: =2.99792458/D8/10 -> 0.001422502766 | E9: 0.001422502766 | F9: 0.001267621387 | G9: 0.001267621387 | H9: 0.001221150542 | I9: 0.001221150542
B10: Bandwidth (ITU-R RA.769-2) | C10: MHz | D10: 8000 | E10: 1 | F10: 8000 | G10: 1 | H10: 8000 | I10: 1
B11: Antenna gain in the direction of interferer (ITU-R RA.769-2) | C11: dBi | D11: 0 | E11: 0 | F11: 0 | G11: 0 | H11: 0 | I11: 0
B12: Feeder (insertion) loss | C12: dB | D12: 0 | E12: 0 | F12: 0 | G12: 0 | H12: 0 | I12: 0
B13: Threshold Interference level at receiver input (ITU-R RA.769-2) | C13: dBW | D13: -187.8 | E13: -207 | F13: -187.8 | G13: -207 | H13: -186.8 | I13: -207
B14: Threshold Interference level at receiver input | C14: dBm | D14: =D13+30 -> -157.8 | E14: -177 | F14: -157.8 | G14: -177 | H14: -156.8 | I14: -177
B16: LPR system:
B17: Conducted Tx power of LPR | C17: dBm | D17: -8 | E17: -8 | F17: -8 | G17: -8 | H17: -8 | I17: -8
B18: Out-of-band unwanted emissions attenuation (if RAS victim is located in an adjacent band) | C18: dB | D18: 20 | E18: 20 | F18: 0 | G18: 0 | H18: 0 | I18: 0
B19: Tx power e.i.r.p. of LPR | C19: dBm | D19: =D17-D18+D25 -> 4 | E19: 4 | F19: 24 | G19: 24 | H19: 24 | I19: 24
B20: Bandwidth of LPR Tx signal | C20: GHz | D20: 1 | E20: 1 | F20: 1 | G20: 1 | H20: 1 | I20: 1
B21: Mitigation technique (e.g. activity factor, adaptive power control) | C21: dB | D21: 0 | E21: 0 | F21: 0 | G21: 0 | H21: 0 | I21: 0
B22: Tx e.i.r.p. spectral density of LPR | C22: dBm/MHz | D22: =D19-10*LOG(D20*1000) -> -26 | E22: -26 | F22: -6 | G22: -6 | H22: -6 | I22: -6
B23: Tx e.i.r.p. spectral density of LPR with mitigation | C23: dBm/MHz | D23: =D19+D21-10*LOG(D20*1000) -> -26 | E23: -26 | F23: -6 | G23: -6 | H23: -6 | I23: -6
B24: Tx e.i.r.p. of LPR with mitigation | C24: dBm | D24: =D19+D21 -> 4 | E24: 4 | F24: 24 | G24: 24 | H24: 24 | I24: 24
B25: Gain of the LPR antenna in direction of main radiation | C25: dBi | D25: 32 | E25: 32 | F25: 32 | G25: 32 | H25: 32 | I25: 32
B27: Side-lobe interference component:
B28: Antenna side-lobe gain >60° offset angle | C28: dBi | D28: -1 | E28: -1 | F28: -1 | G28: -1 | H28: -1 | I28: -1
B29: Direct e.i.r.p. component sent to the RAS | C29: dBm | D29: =D24-D25+D28 -> -29 | E29: -29 | F29: -9 | G29: -9 | H29: -9 | I29: -9
B31: Reflected interference component:
B32: Sidelobe suppression (first sidelobe, offset angle 20-30° (24° nominal) | C32: dB | D32: -29 | E32: -29 | F32: -29 | G32: -29 | H32: -29 | I32: -29
B33: Reflection loss on sand surface (angle of incidence 33°) | C33: dB | D33: 25 | E33: 25 | F33: 25 | G33: 25 | H33: 25 | I33: 25
B34: Reflected e.i.r.p. component sent to the RAS | C34: dBm | D34: =D24+D32-D33 -> -50 | E34: -50 | F34: -30 | G34: -30 | H34: -30 | I34: -30
B36: Total e.i.r.p. towards RAS | C36: dBm | D36: =10*LOG10(10^(D29/10)+10^(D34/10)) -> -28.96563905 | E36: -28.96563905 | F36: -8.965639052 | G36: -8.965639052 | H36: -8.965639052 | I36: -8.965639052
B37: BWCF | C37: dB | D37: =IF(D20*1000<=D10, 0, 10*LOG10(D10/D20/1000)) -> 0 | E37: -30 | F37: 0 | G37: -30 | H37: 0 | I37: -30
B40: Separation distance calculation:
B41: Minimum coupling loss (MCL) | C41: dB | D41: =D36-(D14-D11+D12)+D37 -> 128.8343609 | E41: 118.0343609 | F41: 148.8343609 | G41: 138.0343609 | H41: 147.8343609 | I41: 138.0343609
B42: Separation distance with FSL model | C42: km | D42: =10^((D41-32.44-20*LOG10(D8*1000))/20) -> 0.313292836 | E42: 0.09035464087 | F42: 2.79181671 | G42: 0.8051687342 | H42: 2.396991814 | I42: 0.7756513468
B43: Specific attenuation due to atmospheric gases (acc. to ITU-R P.835-6 winter high latitude model) | C43: dB/km | D43: 0.25 | E43: 0.25 | F43: 0.27 | G43: 0.27 | H43: 0.29 | I43: 0.29
B44: Separation distance adjusted for attenuation due to atmospheric gases | C44: km | D44: 0.3105058001 | E44: 0.09011920283 | F44: 2.576913052 | G44: 0.7857323126 | H44: 2.225358637 | I44: 0.7563021307
B45: Balance check (should be close to zero) | C45: dB | D45: =D41-20*LOG10(D44)-D44*D43-32.44-20*LOG10(D8*1000) -> -1.150903481e-05 | E45: 0.0001326521282 | F45: -2.378265161e-05 | G45: 9.805080582e-05 | H45: -2.32179176e-05 | I45: 9.692262131e-05
D46: Note 2 | F46: Note 1 | H46: Note 3
B48: Note 1: A power spectral density of -6dBm/MHz in the whole RAS bandwidth of 8GHz would result in a separation distance of 6.4km. Therefore, a separation distance of at least 6.4km should be considered in order to protect RAS.
B50: Note 2: A power spectral density of -6dBm/MHz in the whole RAS bandwidth of 8GHz would result in a separation distance of 0.9km. Therefore, a separation distance of at least 0.9km should be considered in order to protect RAS.
B52: Note 3: A power spectral density of -6dBm/MHz in the whole RAS bandwidth of 8GHz would result in a separation distance of 5.6km. Therefore, a separation distance of at least 5.6km should be considered in order to protect RAS.

Sheet FS 116-148,5GHz
B1: Compatibility analysis between LPR in the frequency band 116 to 148,5 GHz and Fixed Service (FS) systems
B3: Scenario 1: Light pole connected to a building by means of an FS link – FS Rx on building. See Report figure 38.
B5: Victim Fixed Service (FS) system | D5: Band of FS system: 111,8-114,25 GHz | E5: Band of FS system: 111,8-114,25 GHz | F5: Band of FS system: 130-134 GHz | G5: Band of FS system: 130-134 GHz | H5: Band of FS system: 141-148,5 GHz | I5: Band of FS system: 141-148,5 GHz
B6: Sensor type | D6: Point-to-point (PP) | E6: Point-to-point (PP) | F6: Point-to-point (PP) | G6: Point-to-point (PP) | H6: Point-to-point (PP) | I6: Point-to-point (PP)
B7: FS system: | C7: Units
B8: Assumed centre frequency of FS system | C8: GHz | D8: 113.025 | E8: 113.025 | F8: 132 | G8: 132 | H8: 144.75 | I8: 144.75
B9: Wavelength of FS system | C9: m | D9: =2.99792458/D8/10 -> 0.002652443778 | E9: 0.002652443778 | F9: 0.002271154985 | G9: 0.002271154985 | H9: 0.002071105064 | I9: 0.002071105064
B10: Receiver noise bandwidth (ITU-R-F.758-6) | C10: MHz | D10: 1000 | E10: 1000 | F10: 1000 | G10: 1000 | H10: 1000 | I10: 1000
B11: Receiver noise figure (ITU-R-F.758-6) | C11: dB | D11: 12 | E11: 12 | F11: 14 | G11: 14 | H11: 14 | I11: 14
B12: Misalignment of antenna main beam towards LPR (see figure 38 in the Report) | C12: ° | D12: 0.19 | E12: 0.19 | F12: 0.19 | G12: 0.19 | H12: 0.19 | I12: 0.19
B13: Misalignment of antenna main beam towards reflection point on sand surface (see figure 38 in the Report) | C13: ° | D13: 0.67 | E13: 0.67 | F13: 0.67 | G13: 0.67 | H13: 0.67 | I13: 0.67
B14: Antenna gain in the direction of interferer for the side-lobe interference component (ITU-R-F.758-6) | C14: dBi | D14: 43 | E14: 43 | F14: 43 | G14: 43 | H14: 43 | I14: 43
B15: Antenna gain in the direction of interferer for the reflected interference component (ITU-R-F.758-6) | C15: dBi | D15: 40 | E15: 40 | F15: 40 | G15: 40 | H15: 40 | I15: 40
B16: Feeder (insertion) loss (ITU-R-F.758-6) | C16: dB | D16: 0 | E16: 0 | F16: 0 | G16: 0 | H16: 0 | I16: 0
B17: I/N criterion (ITU-R F.758-6 ) | C17: dB | D17: -20 | E17: 5 | F17: -20 | G17: 5 | H17: -20 | I17: 5
B18: Receiver noise power density typical (ITU-R-F.758-6) | C18: dBW/MHz | D18: -132 | E18: -132 | F18: -130 | G18: -130 | H18: -130 | I18: -130
B19: Nominal long-term interference power density threshold (ITU-R-F.758-6) | C19: dBW/MHz | D19: =D18+D17 -> -152 | E19: -127 | F19: -150 | G19: -125 | H19: -150 | I19: -125
B20: Interference threshold at receiver input within IF bandwidth | C20: dBm | D20: =D19+10*LOG10(D10)+30 -> -92 | E20: -67 | F20: -90 | G20: -65 | H20: -90 | I20: -65
B21: (Receiver noise power density calculated over NF) | C21: dBW/MHz | D21: =-113.83+D11-30 -> -131.83 | E21: -131.83 | F21: -129.83 | G21: -129.83 | H21: -129.83 | I21: -129.83
B23: LPR system:
B24: Conducted Tx power of LPR | C24: dBm | D24: -8 | E24: 5 | F24: -8 | G24: 5 | H24: -8 | I24: 5
B25: Out-of-band unwanted emissions attenuation (if FS victim is located in an adjacent band) | C25: dB | D25: 20 | E25: 20 | F25: 0 | G25: 0 | H25: 0 | I25: 0
B26: Tx e.i.r.p. of LPR | C26: dBm | D26: =D24-D25+D32 -> 4 | E26: =E24-E25+E32 -> 17 | F26: 24 | G26: 37 | H26: 24 | I26: 37
B27: Bandwidth of LPR Tx signal | C27: GHz | D27: 1.6 | E27: 1.6 | F27: 1.6 | G27: 1.6 | H27: 1.6 | I27: 1.6
B28: Mitigation technique (e.g. activity factor, adaptive power control) | C28: dB | D28: 0 | E28: 0 | F28: 0 | G28: 0 | H28: 0 | I28: 0
B29: Tx e.i.r.p. spectral density of LPR | C29: dBm/MHz | D29: =D26-10*LOG(D27*1000) -> -28.04119983 | E29: -15.04119983 | F29: -8.041199827 | G29: 4.958800173 | H29: -8.041199827 | I29: 4.958800173
B30: Tx e.i.r.p. spectral density of LPR with mitigation | C30: dBm/MHz | D30: =D26+D28-10*LOG(D27*1000) -> -28.04119983 | E30: -15.04119983 | F30: -8.041199827 | G30: 4.958800173 | H30: -8.041199827 | I30: 4.958800173
B31: Tx e.i.r.p. of LPR with mitigation | C31: dBm | D31: =D26+D28 -> 4 | E31: 17 | F31: 24 | G31: 37 | H31: 24 | I31: 37
B32: Gain of the LPR antenna in direction of main radiation | C32: dBi | D32: 32 | E32: 32 | F32: 32 | G32: 32 | H32: 32 | I32: 32
B34: Side-lobe interference component:
B35: Antenna side-lobe gain >60° offset angle (offset angle ξ in figure 38 in the Report ) | C35: dBi | D35: 0 | E35: 0 | F35: 0 | G35: 0 | H35: 0 | I35: 0
B36: Direct e.i.r.p. component sent to FS system | C36: dBm | D36: =D31-D32+D35 -> -28 | E36: -15 | F36: -8 | G36: 5 | H36: -8 | I36: 5
B37: Direct e.i.r.p. component at FS receiver | C37: dBm | D37: =D36+D14-D16 -> 15 | E37: 28 | F37: 35 | G37: 48 | H37: 35 | I37: 48
B39: Reflected interference component:
B40: Offset angle of reflected interference component (angle ζ in figure 38 in the Report) | C40: ° | D40: 19.71 | E40: 19.71 | F40: 19.71 | G40: 19.71 | H40: 19.71 | I40: 19.71
B41: Antenna gain at angle ζ (see figure 38 in the Report) | C41: dBi | D41: 4 | E41: 4 | F41: 3 | G41: 3 | H41: 2 | I41: 2
B42: Reflection loss on sand surface (angle of incidence 52,71°) | C42: dB | D42: 9 | E42: 9 | F42: 9 | G42: 9 | H42: 9 | I42: 9
B43: Reflected e.i.r.p. component sent to FS system | C43: dBm | D43: =D31-D32+D41-D42 -> -33 | E43: -20 | F43: -14 | G43: -1 | H43: -15 | I43: -2
B44: Reflected e.i.r.p. component at FS receiver | C44: dBm | D44: =D43+D15-D16 -> 7 | E44: 20 | F44: 26 | G44: 39 | H44: 25 | I44: 38
B46: Total e.i.r.p. at FS receiver | C46: dBm | D46: =10*LOG10(10^(D37/10)+10^(D44/10)) -> 15.63892034 | E46: 28.63892034 | F46: 35.51496942 | G46: 48.51496942 | H46: 35.41392685 | I46: 48.41392685
B47: BWCF | C47: dB | D47: =IF(D27*1000<=D10, 0, 10*LOG10(D10/D27/1000)) -> -2.041199827 | E47: 0 | F47: =IF(F27*1000<=F10, 0, 10*LOG10(F10/F27/1000)) -> -2.041199827 | G47: 0 | H47: =IF(H27*1000<=H10, 0, 10*LOG10(H10/H27/1000)) -> -2.041199827 | I47: 0
B49: Separation distance calculation:
B50: Minimum coupling loss (MCL) | C50: dB | D50: =D46-D20+D47 -> 105.5977205 | E50: 95.63892034 | F50: 123.4737696 | G50: 113.5149694 | H50: 123.372727 | I50: 113.4139269
B51: Separation distance with FSL model | C51: km | D51: =10^((D50-32.44-20*LOG10(D8*1000))/20) -> 0.04024496092 | E51: 0.01278708351 | F51: 0.2698451076 | G51: 0.08573823518 | H51: 0.2432303579 | I51: 0.07728189633
B52: Specific attenuation due to atmospheric gases (ITU-R P.676-11 figure 5) | C52: dB/km | D52: 0.4 | E52: 0.4 | F52: 0.8 | G52: 0.8 | H52: 1 | I52: 1
B53: Separation distance adjusted for attenuation due to atmospheric gases | C53: km | D53: 0.04016684721 | E53: 0.01277900692 | F53: 0.2633605035 | G53: 0.08506736201 | H53: 0.236676814 | I53: 0.07660260081
B54: Balance check (should be close to zero) | C54: dB | D54: =D50-20*LOG10(D53)-D53*D52-32.44-20*LOG10(D8*1000) -> 0.0008085761367 | E54: 0.0003763179229 | F54: 0.0005896895391 | G54: 0.0001776012067 | H54: 0.0005644745638 | I54: 8.25016709e-05
D55: Long term interference criterion | E55: Peak power objective | F55: Long term interference criterion | G55: Peak power objective | H55: Long term interference criterion | I55: Peak power objective
B59: Scenario 2: Light pole connected to a building by means of an FS link – FS Rx at light pole. See Report figure 39.
B61: Victim Fixed Service (FS) system | D61: Band of FS system: 111,8-114,25 GHz | E61: Band of FS system: 111,8-114,25 GHz | F61: Band of FS system: 130-134 GHz | G61: Band of FS system: 130-134 GHz | H61: Band of FS system: 141-148,5 GHz | I61: Band of FS system: 141-148,5 GHz
B62: Sensor type | D62: Point-to-point (PP) | E62: Point-to-point (PP) | F62: Point-to-point (PP) | G62: Point-to-point (PP) | H62: Point-to-point (PP) | I62: Point-to-point (PP)
B63: FS system: | C63: Units
B64: Assumed centre frequency of FS system | C64: GHz | D64: 113.025 | E64: 113.025 | F64: 132 | G64: 132 | H64: 144.75 | I64: 144.75
B65: Wavelength of FS system | C65: m | D65: =2.99792458/D64/10 -> 0.002652443778 | E65: 0.002652443778 | F65: 0.002271154985 | G65: 0.002271154985 | H65: 0.002071105064 | I65: 0.002071105064
B66: Receiver noise bandwidth (ITU-R-F.758-6) | C66: MHz | D66: 1000 | E66: 1000 | F66: 1000 | G66: 1000 | H66: 1000 | I66: 1000
B67: Receiver noise figure (ITU-R-F.758-6) | C67: dB | D67: 12 | E67: 12 | F67: 14 | G67: 14 | H67: 14 | I67: 14
B68: Misalignment of antenna main beam towards LPR (angle α in figure 39 in the Report) | C68: ° | D68: 3.62 | E68: 3.62 | F68: 3.62 | G68: 3.62 | H68: 3.62 | I68: 3.62
B69: Misalignment of antenna main beam towards reflection point on sand surface (angle α+β in figure 39 in the Report) | C69: ° | D69: 4.29 | E69: 4.29 | F69: 4.29 | G69: 4.29 | H69: 4.29 | I69: 4.29
B70: Antenna gain in the direction of interferer for the side-lobe interference component (ITU-R-F.758-6) | C70: dBi | D70: 22 | E70: 22 | F70: 22 | G70: 22 | H70: 22 | I70: 22
B71: Antenna gain in the direction of interferer for the reflected interference component (ITU-R-F.758-6) | C71: dBi | D71: 19 | E71: 19 | F71: 19 | G71: 19 | H71: 19 | I71: 19
B72: Feeder (insertion) loss (ITU-R-F.758-6) | C72: dB | D72: 0 | E72: 0 | F72: 0 | G72: 0 | H72: 0 | I72: 0
B73: I/N criterion (ITU-R F.758-6 ) | C73: dB | D73: -20 | E73: 5 | F73: -20 | G73: 5 | H73: -20 | I73: 5
B74: Receiver noise power density typical (ITU-R-F.758-6) | C74: dBW/MHz | D74: -132 | E74: -132 | F74: -130 | G74: -130 | H74: -130 | I74: -130
B75: Nominal long-term interference power density threshold (ITU-R-F.758-6) | C75: dBW/MHz | D75: =D74+D73 -> -152 | E75: -127 | F75: -150 | G75: -125 | H75: -150 | I75: -125
B76: Interference threshold at receiver input within IF bandwidth | C76: dBm | D76: =D75+10*LOG10(D66)+30 -> -92 | E76: -67 | F76: -90 | G76: -65 | H76: -90 | I76: -65
B77: (Receiver noise power density calculated over NF) | C77: dBW/MHz | D77: =-113.83+D67-30 -> -131.83 | E77: -131.83 | F77: -129.83 | G77: -129.83 | H77: -129.83 | I77: -129.83
B79: LPR system:
B80: Conducted Tx power of LPR | C80: dBm | D80: -8 | E80: 5 | F80: -8 | G80: 5 | H80: -8 | I80: 5
B81: Out-of-band unwanted emissions attenuation (if FS victim is located in an adjacent band) | C81: dB | D81: 20 | E81: 20 | F81: 0 | G81: 0 | H81: 0 | I81: 0
B82: Tx e.i.r.p. of LPR | C82: dBm | D82: =D80-D81+D88 -> 4 | E82: =E80-E81+E88 -> 17 | F82: =F80-F81+F88 -> 24 | G82: =G80-G81+G88 -> 37 | H82: =H80-H81+H88 -> 24 | I82: =I80-I81+I88 -> 37
B83: Bandwidth of LPR Tx signal | C83: GHz | D83: 1.6 | E83: 1.6 | F83: 1.6 | G83: 1.6 | H83: 1.6 | I83: 1.6
B84: Mitigation technique (e.g. activity factor, adaptive power control) | C84: dB | D84: 0 | E84: 0 | F84: 0 | G84: 0 | H84: 0 | I84: 0
B85: Tx e.i.r.p. spectral density of LPR | C85: dBm/MHz | D85: =D82-10*LOG(D83*1000) -> -28.04119983 | E85: -15.04119983 | F85: -8.041199827 | G85: 4.958800173 | H85: -8.041199827 | I85: 4.958800173
B86: Tx e.i.r.p. spectral density of LPR with mitigation | C86: dBm/MHz | D86: =D82+D84-10*LOG(D83*1000) -> -28.04119983 | E86: -15.04119983 | F86: -8.041199827 | G86: 4.958800173 | H86: -8.041199827 | I86: 4.958800173
B87: Tx e.i.r.p. of LPR with mitigation | C87: dBm | D87: =D82+D84 -> 4 | E87: 17 | F87: 24 | G87: 37 | H87: 24 | I87: 37
B88: Gain of the LPR antenna in direction of main radiation | C88: dBi | D88: 32 | E88: 32 | F88: 32 | G88: 32 | H88: 32 | I88: 32
B90: Side-lobe interference component:
B91: Antenna side-lobe gain >60° offset angle (offset angle 90°, see figure 39 in the Report ) | C91: dBi | D91: 0 | E91: 0 | F91: 0 | G91: 0 | H91: 0 | I91: 0
B92: Direct e.i.r.p. component sent to FS system | C92: dBm | D92: =D87-D88+D91 -> -28 | E92: =E87-E88+E91 -> -15 | F92: =F87-F88+F91 -> -8 | G92: =G87-G88+G91 -> 5 | H92: =H87-H88+H91 -> -8 | I92: =I87-I88+I91 -> 5
B93: Direct e.i.r.p. component at FS receiver | C93: dBm | D93: =D92+D70-D72 -> -6 | E93: 7 | F93: 14 | G93: 27 | H93: 14 | I93: 27
B95: Reflected interference component:
B96: Offset angle of reflected interference component (angle ζ in figure 39 in the Report) | C96: ° | D96: 23.33 | E96: 23.33 | F96: 23.33 | G96: 23.33 | H96: 23.33 | I96: 23.33
B97: Antenna gain at angle ζ (see figure 39 in the Report) | C97: dBi | D97: 4 | E97: 4 | F97: 3 | G97: 3 | H97: 2 | I97: 2
B98: Reflection loss on sand surface (angle of incidence 56,33°) | C98: dB | D98: 8 | E98: 8 | F98: 8 | G98: 8 | H98: 8 | I98: 8
B99: Reflected e.i.r.p. component sent to FS system | C99: dBm | D99: =D87-D88+D97-D98 -> -32 | E99: -19 | F99: -13 | G99: 0 | H99: -14 | I99: -1
B100: Reflected e.i.r.p. component at FS receiver | C100: dBm | D100: =D99+D71-D72 -> -13 | E100: 0 | F100: 6 | G100: 19 | H100: 5 | I100: 18
B102: Total e.i.r.p. at FS receiver | C102: dBm | D102: =10*LOG10(10^(D93/10)+10^(D100/10)) -> -5.209902503 | E102: 7.790097497 | F102: 14.63892034 | G102: 27.63892034 | H102: 14.51496942 | I102: 27.51496942
B103: BWCF | C103: dB | D103: =IF(D66*1000<=D83, 0, 10*LOG10(D66/D83/1000)) -> -2.041199827 | E103: 0 | F103: =IF(F66*1000<=F83, 0, 10*LOG10(F66/F83/1000)) -> -2.041199827 | G103: 0 | H103: =IF(H66*1000<=H83, 0, 10*LOG10(H66/H83/1000)) -> -2.041199827 | I103: 0
B105: Separation distance calculation:
B106: Minimum coupling loss (MCL) | C106: dB | D106: =D102-D76+D103 -> 84.74889767 | E106: 74.7900975 | F106: 102.5977205 | G106: 92.63892034 | H106: 102.4737696 | I106: 92.51496942
B107: Separation distance with FSL model | C107: km | D107: =10^((D106-32.44-20*LOG10(D64*1000))/20) -> 0.003649810933 | E107: =10^((E106-32.44-20*LOG10(E64*1000))/20) -> 0.00115965915 | F107: =10^((F106-32.44-20*LOG10(F64*1000))/20) -> 0.02439563318 | G107: =10^((G106-32.44-20*LOG10(G64*1000))/20) -> 0.007751256095 | H107: =10^((H106-32.44-20*LOG10(H64*1000))/20) -> 0.02193157934 | I107: =10^((I106-32.44-20*LOG10(I64*1000))/20) -> 0.006968349081
B108: Specific attenuation due to atmospheric gases (ITU-R P.676-11 figure 5) | C108: dB/km | D108: 0.4 | E108: 0.4 | F108: 0.8 | G108: 0.8 | H108: 1 | I108: 1
B109: Separation distance adjusted for attenuation due to atmospheric gases | C109: km | D109: 0.00364884945 | E109: 0.001159486486 | F109: 0.02433875321 | G109: 0.00774535611 | H109: 0.02187439788 | I109: 0.006962602086
B110: Balance check (should be close to zero) | C110: dB | D110: =D106-20*LOG10(D109)-D109*D108-32.44-20*LOG10(D64*1000) -> 0.0008289170442 | E110: =E106-20*LOG10(E109)-E109*E108-32.44-20*LOG10(E64*1000) -> 0.0008295623785 | F110: =F106-20*LOG10(F109)-F109*F108-32.44-20*LOG10(F64*1000) -> 0.0008043452664 | G110: =G106-20*LOG10(G109)-G109*G108-32.44-20*LOG10(G64*1000) -> 0.0004176285639 | H110: =H106-20*LOG10(H109)-H109*H108-32.44-20*LOG10(H64*1000) -> 0.0008016023105 | I110: =I106-20*LOG10(I109)-I109*I108-32.44-20*LOG10(I64*1000) -> 0.0002038529991
D111: Long term interference criterion | E111: Peak power objective | F111: Long term interference criterion | G111: Peak power objective | H111: Long term interference criterion | I111: Peak power objective

Sheet FS 167-182GHz
B1: Compatibility analysis between LPR in the frequency band 167 to 182 GHz and Fixed Service (FS) systems
B3: Scenario 1: Light pole connected to a building by means of an FS link – FS Rx on building. See Report figure 38.
B5: Victim Fixed Service (FS) system | D5: Band of FS system: 167-174,8 GHz | E5: Band of FS system: 167-174,8 GHz
B6: Sensor type | D6: Point-to-point (PP) | E6: Point-to-point (PP)
B7: FS system: | C7: Units
B8: Assumed centre frequency of FS system | C8: GHz | D8: 170.9 | E8: 170.9
B9: Wavelength of FS system | C9: m | D9: =2.99792458/D8/10 -> 0.001754198116 | E9: =2.99792458/E8/10 -> 0.001754198116
B10: Receiver noise bandwidth (ITU-R-F.758-6) | C10: MHz | D10: 1000 | E10: 1000
B11: Receiver noise figure (ITU-R-F.758-6) | C11: dB | D11: 14 | E11: 14
B12: Misalignment of antenna main beam towards LPR (see figure 38 in the Report) | C12: ° | D12: 0.19 | E12: 0.19
B13: Misalignment of antenna main beam towards reflection point on sand surface (see figure 38 in the Report) | C13: ° | D13: 0.67 | E13: 0.67
B14: Antenna gain in the direction of interferer for the side-lobe interference component (ITU-R-F.758-6) | C14: dBi | D14: 43 | E14: 43
B15: Antenna gain in the direction of interferer for the reflected interference component (ITU-R-F.758-6) | C15: dBi | D15: 40 | E15: 40
B16: Feeder (insertion) loss (ITU-R-F.758-6) | C16: dB | D16: 0 | E16: 0
B17: I/N criterion (ITU-R F.758-6 ) | C17: dB | D17: -20 | E17: 5
B18: Receiver noise power density typical (ITU-R-F.758-6) | C18: dBW/MHz | D18: -130 | E18: -130
B19: Nominal long-term interference power density threshold (ITU-R-F.758-6) | C19: dBW/MHz | D19: =D18+D17 -> -150 | E19: =E18+E17 -> -125
B20: Interference threshold at receiver input within IF bandwidth | C20: dBm | D20: =D19+10*LOG10(D10)+30 -> -90 | E20: =E19+10*LOG10(E10)+30 -> -65
B21: (Receiver noise power density calculated over NF) | C21: dBW/MHz | D21: =-113.83+D11-30 -> -129.83 | E21: =-113.83+E11-30 -> -129.83
B23: LPR system:
B24: Conducted Tx power of LPR | C24: dBm | D24: -8 | E24: 5
B25: Out-of-band unwanted emissions attenuation (if FS victim is located in an adjacent band) | C25: dB | D25: 0 | E25: 0
B26: Tx e.i.r.p. of LPR | C26: dBm | D26: =D24-D25+D32 -> 24 | E26: =E24-E25+E32 -> 37
B27: Bandwidth of LPR Tx signal | C27: GHz | D27: 1 | E27: 1
B28: Mitigation technique (e.g. activity factor, adaptive power control) | C28: dB | D28: 0 | E28: 0
B29: Tx e.i.r.p. spectral density of LPR | C29: dBm/MHz | D29: =D26-10*LOG(D27*1000) -> -6 | E29: =E26-10*LOG(E27*1000) -> 7
B30: Tx e.i.r.p. spectral density of LPR with mitigation | C30: dBm/MHz | D30: =D26+D28-10*LOG(D27*1000) -> -6 | E30: =E26+E28-10*LOG(E27*1000) -> 7
B31: Tx e.i.r.p. of LPR with mitigation | C31: dBm | D31: =D26+D28 -> 24 | E31: =E26+E28 -> 37
B32: Gain of the LPR antenna in direction of main radiation | C32: dBi | D32: 32 | E32: 32
B34: Side-lobe interference component:
B35: Antenna side-lobe gain >60° offset angle (offset angle ξ in figure 38 in the Report ) | C35: dBi | D35: 0 | E35: 0
B36: Direct e.i.r.p. component sent to FS system | C36: dBm | D36: =D31-D32+D35 -> -8 | E36: 5
B37: Direct e.i.r.p. component at FS receiver | C37: dBm | D37: =D36+D14-D16 -> 35 | E37: =E36+E14-E16 -> 48
B39: Reflected interference component:
B40: Offset angle of reflected interference component (angle ζ in figure 38 in the Report) | C40: ° | D40: 19.71 | E40: 19.71
B41: Antenna gain at angle ζ (see figure 38 in the Report) | C41: dBi | D41: 2 | E41: 2
B42: Reflection loss on sand surface (angle of incidence 52,71°) | C42: dB | D42: 12.5 | E42: 12.5
B43: Reflected e.i.r.p. component sent to FS system | C43: dBm | D43: =D31-D32+D41-D42 -> -18.5 | E43: =E31-E32+E41-E42 -> -5.5
B44: Reflected e.i.r.p. component at FS receiver | C44: dBm | D44: =D43+D15-D16 -> 21.5 | E44: =E43+E15-E16 -> 34.5
B46: Total e.i.r.p. towards FS | C46: dBm | D46: =10*LOG10(10^(D37/10)+10^(D44/10)) -> 35.18978441 | E46: =10*LOG10(10^(E37/10)+10^(E44/10)) -> 48.18978441
B47: BWCF | C47: dB | D47: =IF(D27*1000<=D10, 0, 10*LOG10(D10/D27/1000)) -> 0 | E47: 0
B49: Separation distance calculation:
B50: Minimum coupling loss (MCL) | C50: dB | D50: =D46-D20+D47 -> 125.1897844 | E50: =E46-E20+E47 -> 113.1897844
B51: Separation distance with FSL model | C51: km | D51: =10^((D50-32.44-20*LOG10(D8*1000))/20) -> 0.2539493805 | E51: 0.06378920033
B52: Specific attenuation due to atmospheric gases (ITU-R P.676-11 figure 5) | C52: dB/km | D52: 2 | E52: 2
B53: Separation distance adjusted for attenuation due to atmospheric gases | C53: km | D53: 0.2402791456 | E53: 0.06286660015
B54: Balance check (should be close to zero) | C54: dB | D54: =D50-20*LOG10(D53)-D53*D52-32.44-20*LOG10(D8*1000) -> 6.328483491e-05 | E54: =E50-20*LOG10(E53)-E53*E52-32.44-20*LOG10(E8*1000) -> 0.0008104727712
D55: Long term interference criterion | E55: Peak power objective
B59: Scenario 2: Light pole connected to a building by means of an FS link – FS Rx at light pole. See Report figure 39.
B61: Victim Fixed Service (FS) system | D61: Band of FS system: 167-174,8 GHz | E61: Band of FS system: 167-174,8 GHz
B62: Sensor type | D62: Point-to-point (PP) | E62: Point-to-point (PP)
B63: FS system: | C63: Units
B64: Assumed centre frequency of FS system | C64: GHz | D64: 170.9 | E64: 170.9
B65: Wavelength of FS system | C65: m | D65: =2.99792458/D64/10 -> 0.001754198116 | E65: =2.99792458/E64/10 -> 0.001754198116
B66: Receiver noise bandwidth (ITU-R-F.758-6) | C66: MHz | D66: 1000 | E66: 1000
B67: Receiver noise figure (ITU-R-F.758-6) | C67: dB | D67: 14 | E67: 14
B68: Misalignment of antenna main beam towards LPR (angle α in figure 39 in the Report) | C68: ° | D68: 3.62 | E68: 3.62
B69: Misalignment of antenna main beam towards reflection point on sand surface (angle α+β in figure 39 in the Report) | C69: ° | D69: 4.29 | E69: 4.29
B70: Antenna gain in the direction of interferer for the side-lobe interference component (ITU-R-F.758-6) | C70: dBi | D70: 22 | E70: 22
B71: Antenna gain in the direction of interferer for the reflected interference component (ITU-R-F.758-6) | C71: dBi | D71: 19 | E71: 19
B72: Feeder (insertion) loss (ITU-R-F.758-6) | C72: dB | D72: 0 | E72: 0
B73: I/N criterion (ITU-R F.758-6 ) | C73: dB | D73: -20 | E73: 5
B74: Receiver noise power density typical (ITU-R-F.758-6) | C74: dBW/MHz | D74: -130 | E74: -130
B75: Nominal long-term interference power density threshold (ITU-R-F.758-6) | C75: dBW/MHz | D75: =D74+D73 -> -150 | E75: =E74+E73 -> -125
B76: Interference threshold at receiver input within IF bandwidth | C76: dBm | D76: =D75+10*LOG10(D66)+30 -> -90 | E76: =E75+10*LOG10(E66)+30 -> -65
B77: (Receiver noise power density calculated over NF) | C77: dBW/MHz | D77: =-113.83+D67-30 -> -129.83 | E77: =-113.83+E67-30 -> -129.83
B79: LPR system:
B80: Conducted Tx power of LPR | C80: dBm | D80: -8 | E80: 5
B81: Out-of-band unwanted emissions attenuation (if FS victim is located in an adjacent band) | C81: dB | D81: 0 | E81: 0
B82: Tx e.i.r.p. of LPR | C82: dBm | D82: =D80-D81+D88 -> 24 | E82: =E80-E81+E88 -> 37
B83: Bandwidth of LPR Tx signal | C83: GHz | D83: 1 | E83: 1
B84: Mitigation technique (e.g. activity factor, adaptive power control) | C84: dB | D84: 0 | E84: 0
B85: Tx e.i.r.p. spectral density of LPR | C85: dBm/MHz | D85: =D82-10*LOG(D83*1000) -> -6 | E85: =E82-10*LOG(E83*1000) -> 7
B86: Tx e.i.r.p. spectral density of LPR with mitigation | C86: dBm/MHz | D86: =D82+D84-10*LOG(D83*1000) -> -6 | E86: =E82+E84-10*LOG(E83*1000) -> 7
B87: Tx e.i.r.p. of LPR with mitigation | C87: dBm | D87: =D82+D84 -> 24 | E87: =E82+E84 -> 37
B88: Gain of the LPR antenna in direction of main radiation | C88: dBi | D88: 32 | E88: 32
B90: Side-lobe interference component:
B91: Antenna side-lobe gain >60° offset angle (offset angle 90°, see figure 39 in the Report ) | C91: dBi | D91: 0 | E91: 0
B92: Direct e.i.r.p. component sent to FS system | C92: dBm | D92: =D87-D88+D91 -> -8 | E92: =E87-E88+E91 -> 5
B93: Direct e.i.r.p. component at FS receiver | C93: dBm | D93: =D92+D70-D72 -> 14 | E93: =E92+E70-E72 -> 27
B95: Reflected interference component:
B96: Offset angle of reflected interference component (angle ζ in figure 39 in the Report) | C96: ° | D96: 23.33 | E96: 23.33
B97: Antenna gain at angle ζ (see figure 39 in the Report) | C97: dBi | D97: 2 | E97: 2
B98: Reflection loss on sand surface (angle of incidence 56,33°) | C98: dB | D98: 12.5 | E98: 12.5
B99: Reflected e.i.r.p. component sent to FS system | C99: dBm | D99: =D87-D88+D97-D98 -> -18.5 | E99: =E87-E88+E97-E98 -> -5.5
B100: Reflected e.i.r.p. component at FS receiver | C100: dBm | D100: =D99+D71-D72 -> 0.5 | E100: =E99+E71-E72 -> 13.5
B102: Total e.i.r.p. at FS receiver | C102: dBm | D102: =10*LOG10(10^(D93/10)+10^(D100/10)) -> 14.18978441 | E102: =10*LOG10(10^(E93/10)+10^(E100/10)) -> 27.18978441
B103: BWCF | C103: dB | D103: =IF(D66*1000<=D83, 0, 10*LOG10(D66/D83/1000)) -> 0 | E103: 0
B105: Separation distance calculation:
B106: Minimum coupling loss (MCL) | C106: dB | D106: =D102-D76+D103 -> 104.1897844 | E106: =E102-E76+E103 -> 92.18978441
B107: Separation distance with FSL model | C107: km | D107: =10^((D106-32.44-20*LOG10(D64*1000))/20) -> 0.02263326237 | E107: =10^((E106-32.44-20*LOG10(E64*1000))/20) -> 0.005685218464
B108: Specific attenuation due to atmospheric gases (ITU-R P.676-11 figure 5) | C108: dB/km | D108: 2 | E108: 2
B109: Separation distance adjusted for attenuation due to atmospheric gases | C109: km | D109: 0.02251868734 | E109: 0.005677238354
B110: Balance check (should be close to zero) | C110: dB | D110: =D106-20*LOG10(D109)-D109*D108-32.44-20*LOG10(D64*1000) -> -0.0009556377065 | E110: =E106-20*LOG10(E109)-E109*E108-32.44-20*LOG10(E64*1000) -> 0.0008461173766
D111: Long term interference criterion | E111: Peak power objective

Sheet Amateur 116-148,5GHz
B1: Compatibility analysis between LPR in the frequency band 116 to 148,5 GHz and Amateur systems
B5: Victim Amateur system | D5: Band of amateur system: 122,25-123 GHz | H5: Band of amateur system: 134-141 GHz
B6: Sensor type | D6: Morse on-off keying | E6: Analogue voice | F6: Data, digital voice and multimedia | G6: Earth-moon-earth (EME) systems | H6: Morse on-off keying | I6: Analogue voice | J6: Data, digital voice and multimedia | K6: Earth-moon-earth (EME) systems
B7: Amateur system: | C7: Units
B8: Assumed centre frequency of Amateur system | C8: GHz | D8: 122.625 | E8: 122.625 | F8: 122.625 | G8: 122.625 | H8: 137.5 | I8: 137.5 | J8: 137.5 | K8: 137.5
B9: Wavelength of Amateur system | C9: m | D9: =2.99792458/D8/10 -> 0.002444790687 | E9: 0.002444790687 | F9: 0.002444790687 | G9: 0.002444790687 | H9: 0.002180308785 | I9: 0.002180308785 | J9: 0.002180308785 | K9: 0.002180308785
B10: Receiver IF bandwidth (ITU-R M.1732-2) | C10: MHz | D10: 0.0005 | E10: 0.0027 | F10: 0.0027 | G10: 0.0024 | H10: 0.0005 | I10: 0.0027 | J10: 0.0027 | K10: 0.0024
B11: Receiver noise figure (ITU-R M.1732-2) | C11: dB | D11: 3 | E11: 3 | F11: 3 | G11: 3 | H11: 3 | I11: 3 | J11: 3 | K11: 3
B12: Antenna gain in the direction of interferer (ITU-R M.1732-2) | C12: dBi | D12: 32 | E12: 32 | F12: 32 | G12: 32 | H12: 32 | I12: 32 | J12: 32 | K12: 32
B13: Feeder (insertion) loss (ITU-R M.1732-2) | C13: dB | D13: 2 | E13: 2 | F13: 2 | G13: 3 | H13: 2 | I13: 2 | J13: 2 | K13: 3
B14: I/N criterion (ITU-R M.1808) | C14: dB | D14: -10 | E14: -10 | F14: -10 | G14: -10 | H14: -10 | I14: -10 | J14: -10 | K14: -10
B15: Receiver noise power density | C15: dBW/MHz | D15: =-113.83+D11-30 -> -140.83 | E15: -140.83 | F15: -140.83 | G15: -140.83 | H15: -140.83 | I15: -140.83 | J15: -140.83 | K15: -140.83
B16: Interference power density threshold | C16: dBW/MHz | D16: =D15+D14 -> -150.83 | E16: -150.83 | F16: -150.83 | G16: -150.83 | H16: -150.83 | I16: -150.83 | J16: -150.83 | K16: -150.83
B17: Interference threshold at receiver input within IF bandwidth | C17: dBm | D17: =D16+10*LOG10(D10)+30 -> -153.8403 | E17: -146.5163624 | F17: -146.5163624 | G17: -147.0278876 | H17: -153.8403 | I17: -146.5163624 | J17: -146.5163624 | K17: -147.0278876
B19: LPR system:
B20: Conducted Tx power of LPR | C20: dBm | D20: -8 | E20: -8 | F20: -8 | G20: -8 | H20: -8 | I20: -8 | J20: -8 | K20: -8
B21: Out-of-band unwanted emissions attenuation (if Amateur victim is located in an adjacent band) | C21: dB | D21: 0 | E21: 0 | F21: 0 | G21: 0 | H21: 0 | I21: 0 | J21: 0 | K21: 0
B22: Tx e.i.r.p. of LPR | C22: dBm | D22: =D20-D21+D28 -> 24 | E22: 24 | F22: 24 | G22: 24 | H22: 24 | I22: 24 | J22: 24 | K22: 24
B23: Bandwidth of LPR Tx signal | C23: GHz | D23: 1.6 | E23: 1.6 | F23: 1.6 | G23: 1.6 | H23: 1.6 | I23: 1.6 | J23: 1.6 | K23: 1.6
B24: Mitigation technique (e.g. activity factor, adaptive power control) | C24: dB | D24: 0 | E24: 0 | F24: 0 | G24: 0 | H24: 0 | I24: 0 | J24: 0 | K24: 0
B25: Tx e.i.r.p. spectral density of LPR | C25: dBm/MHz | D25: =D22-10*LOG(D23*1000) -> -8.041199827 | E25: -8.041199827 | F25: -8.041199827 | G25: -8.041199827 | H25: -8.041199827 | I25: -8.041199827 | J25: -8.041199827 | K25: -8.041199827
B26: Tx e.i.r.p. spectral density of LPR with mitigation | C26: dBm/MHz | D26: =D22+D24-10*LOG(D23*1000) -> -8.041199827 | E26: -8.041199827 | F26: -8.041199827 | G26: -8.041199827 | H26: -8.041199827 | I26: -8.041199827 | J26: -8.041199827 | K26: -8.041199827
B27: Tx e.i.r.p. of LPR with mitigation | C27: dBm | D27: =D22+D24 -> 24 | E27: 24 | F27: 24 | G27: 24 | H27: 24 | I27: 24 | J27: 24 | K27: 24
B28: Gain of the LPR antenna in direction of main radiation | C28: dBi | D28: 32 | E28: 32 | F28: 32 | G28: 32 | H28: 32 | I28: 32 | J28: 32 | K28: 32
B30: Side-lobe interference component:
B31: Antenna side-lobe gain >60° offset angle | C31: dBi | D31: 0 | E31: 0 | F31: 0 | G31: 0 | H31: 0 | I31: 0 | J31: 0 | K31: 0
B32: Direct e.i.r.p. component sent to Amateur system | C32: dBm | D32: =D27-D28+D31 -> -8 | E32: -8 | F32: -8 | G32: -8 | H32: -8 | I32: -8 | J32: -8 | K32: -8
B34: Reflected interference component:
B35: Sidelobe suppression (first sidelobe, offset angle 20-30° (24° nominal) | C35: dB | D35: -28 | E35: -28 | F35: -28 | G35: -28 | H35: -28 | I35: -28 | J35: -28 | K35: -28
B36: Reflection loss on sand surface (angle of incidence 33°) | C36: dB | D36: 18 | E36: 18 | F36: 18 | G36: 18 | H36: 18 | I36: 18 | J36: 18 | K36: 18
B37: Reflected e.i.r.p. component sent to Amateur system | C37: dBm | D37: =D27+D35-D36 -> -22 | E37: -22 | F37: -22 | G37: -22 | H37: -22 | I37: -22 | J37: -22 | K37: -22
B39: Total e.i.r.p. towards Amateur system | C39: dBm | D39: =10*LOG10(10^(D32/10)+10^(D37/10)) -> -7.830457107 | E39: -7.830457107 | F39: -7.830457107 | G39: -7.830457107 | H39: -7.830457107 | I39: -7.830457107 | J39: -7.830457107 | K39: -7.830457107
B40: BWCF | C40: dB | D40: =IF(D23*1000<=D10, 0, 10*LOG10(D10/D23/1000)) -> -65.05149978 | E40: -57.72756218 | F40: -57.72756218 | G40: -58.23908741 | H40: -65.05149978 | I40: -57.72756218 | J40: -57.72756218 | K40: -58.23908741
B42: Separation distance calculation:
B43: Minimum coupling loss (MCL) | C43: dB | D43: =D39-(D17-D12+D13)+D40 -> 110.9583431 | E43: 110.9583431 | F43: 110.9583431 | G43: 109.9583431 | H43: 110.9583431 | I43: 110.9583431 | J43: 110.9583431 | K43: 109.9583431
B44: Separation distance with FSL model | C44: km | D44: =10^((D43-32.44-20*LOG10(D8*1000))/20) -> 0.06876035859 | E44: 0.06876035859 | F44: 0.06876035859 | G44: 0.0612827341 | H44: 0.06132173798 | I44: 0.06132173798 | J44: 0.06132173798 | K44: 0.05465305651
B45: Specific attenuation due to atmospheric gases (ITU-R P.676-11 figure 5) | C45: dB/km | D45: 0.4 | E45: 0.4 | F45: 0.4 | G45: 0.4 | H45: 0.8 | I45: 0.8 | J45: 0.8 | K45: 0.8
B46: Separation distance adjusted for attenuation due to atmospheric gases | C46: km | D46: 0.06853740857 | E46: 0.06853740857 | F46: 0.06853740857 | G46: 0.06110491462 | H46: 0.06097294333 | I46: 0.06097294299 | J46: 0.06097294333 | K46: 0.05437518479
B47: Balance check (should be close to zero) | C47: dB | D47: =D43-20*LOG10(D46)-D46*D45-32.44-20*LOG10(D8*1000) -> 0.0007941041456 | E47: 0.0007941041456 | F47: 0.0007941041456 | G47: 0.0007978604286 | H47: 0.0007675455315 | I47: 0.00076759553 | J47: 0.0007675455315 | K47: 0.0007740373149

Sheet Amateur 231,5-250GHz
B1: Compatibility analysis between LPR in the frequency band 231,5 to 250 GHz and Amateur systems
B5: Victim Amateur system | D5: Band of amateur system: 241-250 GHz
B6: Sensor type | D6: Morse on-off keying | E6: Analogue voice | F6: Data, digital voice and multimedia | G6: Earth-moon-earth (EME) systems
B7: Amateur system: | C7: Units
B8: Assumed centre frequency of Amateur system | C8: GHz | D8: 245.5 | E8: 245.5 | F8: 245.5 | G8: 245.5
B9: Wavelength of Amateur system | C9: m | D9: =2.99792458/D8/10 -> 0.001221150542 | E9: =2.99792458/E8/10 -> 0.001221150542 | F9: =2.99792458/F8/10 -> 0.001221150542 | G9: =2.99792458/G8/10 -> 0.001221150542
B10: Receiver IF bandwidth (ITU-R M.1732-2) | C10: MHz | D10: 0.0005 | E10: 0.0027 | F10: 0.0027 | G10: 0.0024
B11: Receiver noise figure (ITU-R M.1732-2) | C11: dB | D11: 5 | E11: 5 | F11: 5 | G11: 5
B12: Antenna gain in the direction of interferer (ITU-R M.1732-2) | C12: dBi | D12: 32 | E12: 32 | F12: 32 | G12: 32
B13: Feeder (insertion) loss (ITU-R M.1732-2) | C13: dB | D13: 3 | E13: 3 | F13: 3 | G13: 4
B14: I/N criterion (ITU-R M.1808) | C14: dB | D14: -10 | E14: -10 | F14: -10 | G14: -10
B15: Receiver noise power density | C15: dBW/MHz | D15: =-113.83+D11-30 -> -138.83 | E15: =-113.83+E11-30 -> -138.83 | F15: =-113.83+F11-30 -> -138.83 | G15: =-113.83+G11-30 -> -138.83
B16: Interference power density threshold | C16: dBW/MHz | D16: =D15+D14 -> -148.83 | E16: =E15+E14 -> -148.83 | F16: =F15+F14 -> -148.83 | G16: =G15+G14 -> -148.83
B17: Interference threshold at receiver input within IF bandwidth | C17: dBm | D17: =D16+10*LOG10(D10)+30 -> -151.8403 | E17: =E16+10*LOG10(E10)+30 -> -144.5163624 | F17: =F16+10*LOG10(F10)+30 -> -144.5163624 | G17: =G16+10*LOG10(G10)+30 -> -145.0278876
B19: LPR system:
B20: Conducted Tx power of LPR | C20: dBm | D20: -8 | E20: -8 | F20: -8 | G20: -8
B21: Out-of-band unwanted emissions attenuation (if Amateur victim is located in an adjacent band) | C21: dB | D21: 0 | E21: 0 | F21: 0 | G21: 0
B22: Tx e.i.r.p. of LPR | C22: dBm | D22: =D20-D21+D28 -> 24 | E22: =E20-E21+E28 -> 24 | F22: =F20-F21+F28 -> 24 | G22: =G20-G21+G28 -> 24
B23: Bandwidth of LPR Tx signal | C23: GHz | D23: 1 | E23: 1 | F23: 1 | G23: 1
B24: Mitigation technique (e.g. activity factor, adaptive power control) | C24: dB | D24: 0 | E24: 0 | F24: 0 | G24: 0
B25: Tx e.i.r.p. spectral density of LPR | C25: dBm/MHz | D25: =D22-10*LOG(D23*1000) -> -6 | E25: =E22-10*LOG(E23*1000) -> -6 | F25: =F22-10*LOG(F23*1000) -> -6 | G25: =G22-10*LOG(G23*1000) -> -6
B26: Tx e.i.r.p. spectral density of LPR with mitigation | C26: dBm/MHz | D26: =D22+D24-10*LOG(D23*1000) -> -6 | E26: =E22+E24-10*LOG(E23*1000) -> -6 | F26: =F22+F24-10*LOG(F23*1000) -> -6 | G26: =G22+G24-10*LOG(G23*1000) -> -6
B27: Tx e.i.r.p. of LPR with mitigation | C27: dBm | D27: =D22+D24 -> 24 | E27: =E22+E24 -> 24 | F27: =F22+F24 -> 24 | G27: =G22+G24 -> 24
B28: Gain of the LPR antenna in direction of main radiation | C28: dBi | D28: 32 | E28: 32 | F28: 32 | G28: 32
B30: Side-lobe interference component:
B31: Antenna side-lobe gain >60° offset angle | C31: dBi | D31: -1 | E31: -1 | F31: -1 | G31: -1
B32: Direct e.i.r.p. component sent to Amateur system | C32: dBm | D32: =D27-D28+D31 -> -9 | E32: =E27-E28+E31 -> -9 | F32: =F27-F28+F31 -> -9 | G32: =G27-G28+G31 -> -9
B34: Reflected interference component:
B35: Sidelobe suppression (first sidelobe, offset angle 20-30° (24° nominal) | C35: dB | D35: -29 | E35: -29 | F35: -29 | G35: -29
B36: Reflection loss on sand surface (angle of incidence 33°) | C36: dB | D36: 25 | E36: 25 | F36: 25 | G36: 25
B37: Reflected e.i.r.p. component sent to Amateur system | C37: dBm | D37: =D27+D35-D36 -> -30 | E37: =E27+E35-E36 -> -30 | F37: =F27+F35-F36 -> -30 | G37: =G27+G35-G36 -> -30
B39: Total e.i.r.p. towards Amateur system | C39: dBm | D39: =10*LOG10(10^(D32/10)+10^(D37/10)) -> -8.965639052 | E39: =10*LOG10(10^(E32/10)+10^(E37/10)) -> -8.965639052 | F39: =10*LOG10(10^(F32/10)+10^(F37/10)) -> -8.965639052 | G39: =10*LOG10(10^(G32/10)+10^(G37/10)) -> -8.965639052
B40: BWCF | C40: dB | D40: =IF(D23*1000<=D10, 0, 10*LOG10(D10/D23/1000)) -> -63.01029996 | E40: =IF(E23*1000<=E10, 0, 10*LOG10(E10/E23/1000)) -> -55.68636236 | F40: =IF(F23*1000<=F10, 0, 10*LOG10(F10/F23/1000)) -> -55.68636236 | G40: =IF(G23*1000<=G10, 0, 10*LOG10(G10/G23/1000)) -> -56.19788758
B42: Separation distance calculation:
B43: Minimum coupling loss (MCL) | C43: dB | D43: =D39-(D17-D12+D13)+D40 -> 108.8643609 | E43: =E39-(E17-E12+E13)+E40 -> 108.8643609 | F43: =F39-(F17-F12+F13)+F40 -> 108.8643609 | G43: =G39-(G17-G12+G13)+G40 -> 107.8643609
B44: Separation distance with FSL model | C44: km | D44: =10^((D43-32.44-20*LOG10(D8*1000))/20) -> 0.02698774208 | E44: =10^((E43-32.44-20*LOG10(E8*1000))/20) -> 0.02698774208 | F44: =10^((F43-32.44-20*LOG10(F8*1000))/20) -> 0.02698774208 | G44: =10^((G43-32.44-20*LOG10(G8*1000))/20) -> 0.02405285044
B45: Specific attenuation due to atmospheric gases (ITU-R P.676-11 figure 5) | C45: dB/km | D45: 3 | E45: 3 | F45: 3 | G45: 3
B46: Separation distance adjusted for attenuation due to atmospheric gases | C46: km | D46: 0.02673927365 | E46: 0.02673927365 | F46: 0.02673927365 | G46: 0.0238551494
B47: Balance check (should be close to zero) | C47: dB | D47: =D43-20*LOG10(D46)-D46*D45-32.44-20*LOG10(D8*1000) -> 0.0001210816732 | E47: =E43-20*LOG10(E46)-E46*E45-32.44-20*LOG10(E8*1000) -> 0.0001210816731 | F47: =F43-20*LOG10(F46)-F46*F45-32.44-20*LOG10(F8*1000) -> 0.0001210816731 | G47: =G43-20*LOG10(G46)-G46*G45-32.44-20*LOG10(G8*1000) -> 0.0001227551431
